BODY,BODY NAME,DATE,TRANSACTION NUMBER,THEIR REF,CATEGORY,AMOUNT,SUPPLIER NAME,SUPPLIER CODE,EXPENSE AREA,EXPENSE TYPE,EXPENSE CODE
http://statistics.data.gov.uk/id/local-authority/12UE,Huntingdonshire District Council,05/11/2015,177311,1280,5,1700,Wood Green Animal Shelters,CR019139,Animal Welfare,Contribution (Paid Out),810
http://statistics.data.gov.uk/id/local-authority/12UE,Huntingdonshire District Council,05/11/2015,177310,1281,5,1500,Wood Green Animal Shelters,CR019139,Animal Welfare,Contribution (Paid Out),810
http://statistics.data.gov.uk/id/local-authority/12UE,Huntingdonshire District Council,12/11/2015,178825,1212772394,5,22.1,Orange Airtime,CR455799,Animal Welfare,Telephone &Mobile Phonecharges,240
http://statistics.data.gov.uk/id/local-authority/12UE,Huntingdonshire District Council,12/11/2015,588901,4BC343044,6,6000,North Kesteven District Council,CR480804,Building Control Other,Subcontractors,777
http://statistics.data.gov.uk/id/local-authority/12UE,Huntingdonshire District Council,26/11/2015,179597,60156967/522256,5,805,Central England Co-Operative Ltd,CR401059,Burials Under Health Acts,Funerals And Graves,717
http://statistics.data.gov.uk/id/local-authority/12UE,Huntingdonshire District Council,26/11/2015,178824,2015/175,5,695.04,Primesight  Ltd,CR132710,Bus Shelters,Building Cleaning,440
http://statistics.data.gov.uk/id/local-authority/12UE,Huntingdonshire District Council,05/11/2015,177712,55291,5,1140.78,Beebys Limited,CR415822,Bus Stations,Building Mtce,303
http://statistics.data.gov.uk/id/local-authority/12UE,Huntingdonshire District Council,05/11/2015,178641,661225560,5,1022.06,Swalec,CR407130,Bus Stations,Electricity,420
http://statistics.data.gov.uk/id/local-authority/12UE,Huntingdonshire District Council,19/11/2015,178664,2188321,5,1268.4,Haymarket Media Group,CR479500,Business & Enterprise Support,Conferences,137
http://statistics.data.gov.uk/id/local-authority/12UE,Huntingdonshire District Council,12/11/2015,178825,1212772394,5,19.2,Orange Airtime,CR455799,Business & Enterprise Support,Telephone &Mobile Phonecharges,240
http://statistics.data.gov.uk/id/local-authority/12UE,Huntingdonshire District Council,12/11/2015,178661,REDACTED PERSONAL DATA,5,576,Archant Community Media Ltd,CR452143,Business & Enterprise Support,Conferences,137
http://statistics.data.gov.uk/id/local-authority/12UE,Huntingdonshire District Council,26/11/2015,179298,4141,5,1108.8,Access Hire And Hydraulics,CR422526,C C T V,Equipment Maintenance,511
http://statistics.data.gov.uk/id/local-authority/12UE,Huntingdonshire District Council,05/11/2015,177741,53918,5,1560,Melsecure International,CR422888,C C T V,Equipment Maintenance,511
http://statistics.data.gov.uk/id/local-authority/12UE,Huntingdonshire District Council,12/11/2015,177663,966513266,5,26.09,Office Depot Uk Ltd,CR455229,C C T V,Equipment Maintenance,511
http://statistics.data.gov.uk/id/local-authority/12UE,Huntingdonshire District Council,12/11/2015,177663,966513266,5,514,Office Depot Uk Ltd,CR455229,C C T V,Equipment Maintenance,511
http://statistics.data.gov.uk/id/local-authority/12UE,Huntingdonshire District Council,12/11/2015,177663,966513266,5,19.49,Office Depot Uk Ltd,CR455229,C C T V,Equipment Maintenance,511
http://statistics.data.gov.uk/id/local-authority/12UE,Huntingdonshire District Council,12/11/2015,177663,966513266,5,12.35,Office Depot Uk Ltd,CR455229,C C T V,Equipment Maintenance,511
http://statistics.data.gov.uk/id/local-authority/12UE,Huntingdonshire District Council,12/11/2015,178825,1212772394,5,63.36,Orange Airtime,CR455799,C C T V,Telephone &Mobile Phonecharges,240
http://statistics.data.gov.uk/id/local-authority/12UE,Huntingdonshire District Council,05/11/2015,178446,INV1606987,5,294.58,Interaction Recruitment Plc,CR007892,C C T V,Hired Staff,100
http://statistics.data.gov.uk/id/local-authority/12UE,Huntingdonshire District Council,12/11/2015,178447,INV1608897,5,403.1,Interaction Recruitment Plc,CR007892,C C T V,Hired Staff,100
http://statistics.data.gov.uk/id/local-authority/12UE,Huntingdonshire District Council,19/11/2015,179307,INV1610959,5,403.1,Interaction Recruitment Plc,CR007892,C C T V,Hired Staff,100
http://statistics.data.gov.uk/id/local-authority/12UE,Huntingdonshire District Council,26/11/2015,179303,INV1612772,5,325.58,Interaction Recruitment Plc,CR007892,C C T V,Hired Staff,100
http://statistics.data.gov.uk/id/local-authority/12UE,Huntingdonshire District Council,26/11/2015,177892,SCR001105,5,-627,Quadrant Security Group,CR027775,C C T V,Equipment Maintenance,511
http://statistics.data.gov.uk/id/local-authority/12UE,Huntingdonshire District Council,26/11/2015,177905,SCR001125,5,-7300.18,Quadrant Security Group,CR027775,C C T V,Equipment Maintenance,511
http://statistics.data.gov.uk/id/local-authority/12UE,Huntingdonshire District Council,26/11/2015,177893,SCR001126,5,-1387.2,Quadrant Security Group,CR027775,C C T V,Equipment Maintenance,511
http://statistics.data.gov.uk/id/local-authority/12UE,Huntingdonshire District Council,26/11/2015,177894,SCR001127,5,-1542,Quadrant Security Group,CR027775,C C T V,Equipment Maintenance,511
http://statistics.data.gov.uk/id/local-authority/12UE,Huntingdonshire District Council,26/11/2015,177904,SCR001128,5,-4063.03,Quadrant Security Group,CR027775,C C T V,Equipment Maintenance,511
http://statistics.data.gov.uk/id/local-authority/12UE,Huntingdonshire District Council,26/11/2015,177902,SCR001129,5,-2840.84,Quadrant Security Group,CR027775,C C T V,Equipment Maintenance,511
http://statistics.data.gov.uk/id/local-authority/12UE,Huntingdonshire District Council,26/11/2015,177901,SCR001130,5,-2840.84,Quadrant Security Group,CR027775,C C T V,Equipment Maintenance,511
http://statistics.data.gov.uk/id/local-authority/12UE,Huntingdonshire District Council,26/11/2015,177900,SCR001131,5,-2840.84,Quadrant Security Group,CR027775,C C T V,Equipment Maintenance,511
http://statistics.data.gov.uk/id/local-authority/12UE,Huntingdonshire District Council,26/11/2015,177903,SCR001132,5,-2840.84,Quadrant Security Group,CR027775,C C T V,Equipment Maintenance,511
http://statistics.data.gov.uk/id/local-authority/12UE,Huntingdonshire District Council,26/11/2015,177898,SCR001133,5,-3600.6,Quadrant Security Group,CR027775,C C T V,Equipment Maintenance,511
http://statistics.data.gov.uk/id/local-authority/12UE,Huntingdonshire District Council,26/11/2015,177897,SCR001134,5,-3600.6,Quadrant Security Group,CR027775,C C T V,Equipment Maintenance,511
http://statistics.data.gov.uk/id/local-authority/12UE,Huntingdonshire District Council,26/11/2015,177895,SCR001135,5,-3600.6,Quadrant Security Group,CR027775,C C T V,Equipment Maintenance,511
http://statistics.data.gov.uk/id/local-authority/12UE,Huntingdonshire District Council,26/11/2015,177896,SIN077201,5,627,Quadrant Security Group,CR027775,C C T V,Equipment Maintenance,511
http://statistics.data.gov.uk/id/local-authority/12UE,Huntingdonshire District Council,26/11/2015,174386,SIN077575,5,1387.2,Quadrant Security Group,CR027775,C C T V,Equipment Maintenance,511
http://statistics.data.gov.uk/id/local-authority/12UE,Huntingdonshire District Council,26/11/2015,174376,SIN077576,5,1542,Quadrant Security Group,CR027775,C C T V,Equipment Maintenance,511
http://statistics.data.gov.uk/id/local-authority/12UE,Huntingdonshire District Council,26/11/2015,177944,SIN078206,5,7300.2,Quadrant Security Group,CR027775,C C T V,Equipment Maintenance,511
http://statistics.data.gov.uk/id/local-authority/12UE,Huntingdonshire District Council,26/11/2015,177918,SIN078209,5,3237.2,Quadrant Security Group,CR027775,C C T V,Equipment Maintenance,511
http://statistics.data.gov.uk/id/local-authority/12UE,Huntingdonshire District Council,26/11/2015,177918,SIN078209,5,4063,Quadrant Security Group,CR027775,C C T V,Equipment Maintenance,511
http://statistics.data.gov.uk/id/local-authority/12UE,Huntingdonshire District Council,26/11/2015,177917,SIN078210,5,3237.2,Quadrant Security Group,CR027775,C C T V,Equipment Maintenance,511
http://statistics.data.gov.uk/id/local-authority/12UE,Huntingdonshire District Council,26/11/2015,177917,SIN078210,5,4063,Quadrant Security Group,CR027775,C C T V,Equipment Maintenance,511
http://statistics.data.gov.uk/id/local-authority/12UE,Huntingdonshire District Council,26/11/2015,179311,SIN078238,5,7300.2,Quadrant Security Group,CR027775,C C T V,Equipment Maintenance,511
http://statistics.data.gov.uk/id/local-authority/12UE,Huntingdonshire District Council,26/11/2015,179921,SIN078544,5,7300.2,Quadrant Security Group,CR027775,C C T V,Equipment Maintenance,511
http://statistics.data.gov.uk/id/local-authority/12UE,Huntingdonshire District Council,05/11/2015,177653,21069,5,1228.06,B. S. Graves Electrical Ltd,CR000363,C C T V Equipment Capital,Building Mtce,303
http://statistics.data.gov.uk/id/local-authority/12UE,Huntingdonshire District Council,12/11/2015,179128,1212,5,325.2,Lightning Recruitment,CR028184,Call Centre,Hired Staff,100
http://statistics.data.gov.uk/id/local-authority/12UE,Huntingdonshire District Council,12/11/2015,179287,1212,5,-325.2,Lightning Recruitment,CR028184,Call Centre,Hired Staff,100
http://statistics.data.gov.uk/id/local-authority/12UE,Huntingdonshire District Council,12/11/2015,178236,11045,5,325.2,Lightning Recruitment,CR028184,Call Centre,Hired Staff,100
http://statistics.data.gov.uk/id/local-authority/12UE,Huntingdonshire District Council,26/11/2015,178714,11131,5,325.2,Lightning Recruitment,CR028184,Call Centre,Hired Staff,100
http://statistics.data.gov.uk/id/local-authority/12UE,Huntingdonshire District Council,12/11/2015,178825,1212772394,5,12,Orange Airtime,CR455799,Call Centre,Telephone &Mobile Phonecharges,240
http://statistics.data.gov.uk/id/local-authority/12UE,Huntingdonshire District Council,12/11/2015,178825,1212772394,5,12,Orange Airtime,CR455799,Central Services M Us,Telephone &Mobile Phonecharges,240
http://statistics.data.gov.uk/id/local-authority/12UE,Huntingdonshire District Council,12/11/2015,178825,1212772394,5,186.96,Orange Airtime,CR455799,Chief Executive & Comt,Telephone &Mobile Phonecharges,240
http://statistics.data.gov.uk/id/local-authority/12UE,Huntingdonshire District Council,19/11/2015,178278,1354420381,5,16542,Pricewaterhouse Coopers Llp,CR487210,Chief Executive & Comt,Audit Fees,701
http://statistics.data.gov.uk/id/local-authority/12UE,Huntingdonshire District Council,19/11/2015,178239,01/15/HDC007,5,12144,Hester Management Services Ltd,CR422903,Chief Executive & Comt,Consultants,711
http://statistics.data.gov.uk/id/local-authority/12UE,Huntingdonshire District Council,26/11/2015,178408,DINV 211682,5,2028,South Cambridgeshire District Council,CR405127,Chief Executive & Comt,Training,130
http://statistics.data.gov.uk/id/local-authority/12UE,Huntingdonshire District Council,05/11/2015,588577,DINV/211577,6,1090.84,South Cambs District Council,CR002825,Chief Executive & Comt,Training,130
http://statistics.data.gov.uk/id/local-authority/12UE,Huntingdonshire District Council,19/11/2015,178359,SINV00077915,5,780,Bist,CR422733,Chief Executive & Comt,Other I T Hardware,203
http://statistics.data.gov.uk/id/local-authority/12UE,Huntingdonshire District Council,26/11/2015,180007,C-0002207012,5,4787.95,Computershare Vouchers Ltd,CR412205,Child Care Vouchers - Payroll,Deductions Paid To Third Party,26
http://statistics.data.gov.uk/id/local-authority/12UE,Huntingdonshire District Council,26/11/2015,178872,5134679,5,1182,Integrated Water Services Ltd,CR452140,Commercial Properties,Building Mtce,303
http://statistics.data.gov.uk/id/local-authority/12UE,Huntingdonshire District Council,12/11/2015,178655,5110 HDC FIRE M,5,403.26,Hunts Forum Of Voluntary Organisations,CR030582,Commercial Properties,Building Mtce,303
http://statistics.data.gov.uk/id/local-authority/12UE,Huntingdonshire District Council,12/11/2015,178811,54505 VALUATION,5,780,Barker Storey Matthews,CR400788,Commercial Properties,Consultants,711
http://statistics.data.gov.uk/id/local-authority/12UE,Huntingdonshire District Council,12/11/2015,178825,1212772394,5,29.76,Orange Airtime,CR455799,Community Services M Us,Telephone &Mobile Phonecharges,240
http://statistics.data.gov.uk/id/local-authority/12UE,Huntingdonshire District Council,12/11/2015,178299,377,5,328.9,D & M Heritage Ltd,CR400734,Corporate Committees,Books & Publications,250
http://statistics.data.gov.uk/id/local-authority/12UE,Huntingdonshire District Council,26/11/2015,179594,2740,5,5922.51,Newlyn Plc,CR409114,Council Tax,Bailiffs,703
http://statistics.data.gov.uk/id/local-authority/12UE,Huntingdonshire District Council,26/11/2015,179023,636954,5,123.6,Callcredit Ltd,CR455548,Council Tax,Enquiries,723
http://statistics.data.gov.uk/id/local-authority/12UE,Huntingdonshire District Council,12/11/2015,178825,1212772394,5,4.8,Orange Airtime,CR455799,Council Tax,Telephone &Mobile Phonecharges,240
http://statistics.data.gov.uk/id/local-authority/12UE,Huntingdonshire District Council,26/11/2015,178874,IN16PS15006801,5,1003.55,Whistl,CR479965,Council Tax,Postage,231
http://statistics.data.gov.uk/id/local-authority/12UE,Huntingdonshire District Council,26/11/2015,178873,IN16PS15006802,5,909.24,Whistl,CR479965,Council Tax,Postage,231
http://statistics.data.gov.uk/id/local-authority/12UE,Huntingdonshire District Council,12/11/2015,179158,30,5,4272,Peacock Engineering,CR410043,Countryside,Equipment,500
http://statistics.data.gov.uk/id/local-authority/12UE,Huntingdonshire District Council,26/11/2015,179280,13199,5,33.48,Jade Security Services Ltd,CR422256,Countryside,Cash Collection,702
http://statistics.data.gov.uk/id/local-authority/12UE,Huntingdonshire District Council,19/11/2015,179139,20-Oct-15,5,808.8,Britannia Fire & Security Ltd,CR410090,Countryside,Fire & Security,450
http://statistics.data.gov.uk/id/local-authority/12UE,Huntingdonshire District Council,26/11/2015,179170,61892,5,81.4,Snackline Chilled Ltd,CR422825,Countryside,Catering Materials,559
http://statistics.data.gov.uk/id/local-authority/12UE,Huntingdonshire District Council,26/11/2015,179170,61892,5,298.48,Snackline Chilled Ltd,CR422825,Countryside,Catering Materials,559
http://statistics.data.gov.uk/id/local-authority/12UE,Huntingdonshire District Council,26/11/2015,179880,141278,5,941.56,Huntingdon Timber Supplies,CR482513,Countryside,Materials,550
http://statistics.data.gov.uk/id/local-authority/12UE,Huntingdonshire District Council,26/11/2015,179121,163404,5,47.99,Arthur Ibbett Ltd,CR000430,Countryside,Protective Clothing & Uniforms,163
http://statistics.data.gov.uk/id/local-authority/12UE,Huntingdonshire District Council,26/11/2015,179121,163404,5,45,Arthur Ibbett Ltd,CR000430,Countryside,Protective Clothing & Uniforms,163
http://statistics.data.gov.uk/id/local-authority/12UE,Huntingdonshire District Council,26/11/2015,179121,163404,5,209.85,Arthur Ibbett Ltd,CR000430,Countryside,Equipment Maintenance,511
http://statistics.data.gov.uk/id/local-authority/12UE,Huntingdonshire District Council,26/11/2015,179121,163404,5,56.17,Arthur Ibbett Ltd,CR000430,Countryside,Materials,550
http://statistics.data.gov.uk/id/local-authority/12UE,Huntingdonshire District Council,26/11/2015,179886,839444,5,267.63,King Bros,CR411339,Countryside,Catering Materials,559
http://statistics.data.gov.uk/id/local-authority/12UE,Huntingdonshire District Council,19/11/2015,179146,3672749,1,19.56,Espo,CR006566,Countryside,Protective Clothing & Uniforms,163
http://statistics.data.gov.uk/id/local-authority/12UE,Huntingdonshire District Council,19/11/2015,179146,3672749,1,14.31,Espo,CR006566,Countryside,Stationery,225
http://statistics.data.gov.uk/id/local-authority/12UE,Huntingdonshire District Council,19/11/2015,179146,3672749,1,93.53,Espo,CR006566,Countryside,Cleaning Materials,443
http://statistics.data.gov.uk/id/local-authority/12UE,Huntingdonshire District Council,19/11/2015,179146,3672749,1,169.15,Espo,CR006566,Countryside,Materials,550
http://statistics.data.gov.uk/id/local-authority/12UE,Huntingdonshire District Council,12/11/2015,178825,1212772394,5,40.96,Orange Airtime,CR455799,Countryside,Telephone &Mobile Phonecharges,240
http://statistics.data.gov.uk/id/local-authority/12UE,Huntingdonshire District Council,26/11/2015,179862,2102250194,5,279.67,Booker Cash And Carry,CR027611,Countryside,Catering Materials,559
http://statistics.data.gov.uk/id/local-authority/12UE,Huntingdonshire District Council,26/11/2015,179828,4000002983,5,342,1st Choice Recruitment,CR416849,Countryside,Hired Staff,100
http://statistics.data.gov.uk/id/local-authority/12UE,Huntingdonshire District Council,05/11/2015,177975,4000003061,5,342,1st Choice Recruitment,CR416849,Countryside,Hired Staff,100
http://statistics.data.gov.uk/id/local-authority/12UE,Huntingdonshire District Council,12/11/2015,178308,4000003081,5,342,1st Choice Recruitment,CR416849,Countryside,Hired Staff,100
http://statistics.data.gov.uk/id/local-authority/12UE,Huntingdonshire District Council,05/11/2015,178740,GBW 01-SEP-2015,5,1003.46,G B Windpumps,CR415266,Countryside,Equipment Maintenance,511
http://statistics.data.gov.uk/id/local-authority/12UE,Huntingdonshire District Council,19/11/2015,178748,INV248014,5,303,Pearce Seeds Llp,CR423003,Countryside,Plants And Seeds,556
http://statistics.data.gov.uk/id/local-authority/12UE,Huntingdonshire District Council,12/11/2015,179123,1211,5,385.18,Lightning Recruitment,CR028184,Customer Service Centres,Hired Staff,100
http://statistics.data.gov.uk/id/local-authority/12UE,Huntingdonshire District Council,12/11/2015,179291,1211,5,-385.18,Lightning Recruitment,CR028184,Customer Service Centres,Hired Staff,100
http://statistics.data.gov.uk/id/local-authority/12UE,Huntingdonshire District Council,12/11/2015,179131,1213,5,601.62,Lightning Recruitment,CR028184,Customer Service Centres,Hired Staff,100
http://statistics.data.gov.uk/id/local-authority/12UE,Huntingdonshire District Council,12/11/2015,179286,1213,5,-601.62,Lightning Recruitment,CR028184,Customer Service Centres,Hired Staff,100
http://statistics.data.gov.uk/id/local-authority/12UE,Huntingdonshire District Council,05/11/2015,177544,10999,5,601.62,Lightning Recruitment,CR028184,Customer Service Centres,Hired Staff,100
http://statistics.data.gov.uk/id/local-authority/12UE,Huntingdonshire District Council,19/11/2015,178608,11090,5,471.54,Lightning Recruitment,CR028184,Customer Service Centres,Hired Staff,100
http://statistics.data.gov.uk/id/local-authority/12UE,Huntingdonshire District Council,26/11/2015,178713,11130,5,601.62,Lightning Recruitment,CR028184,Customer Service Centres,Hired Staff,100
http://statistics.data.gov.uk/id/local-authority/12UE,Huntingdonshire District Council,26/11/2015,178715,11134,5,385.18,Lightning Recruitment,CR028184,Customer Service Centres,Hired Staff,100
http://statistics.data.gov.uk/id/local-authority/12UE,Huntingdonshire District Council,26/11/2015,178716,11135,5,385.18,Lightning Recruitment,CR028184,Customer Service Centres,Hired Staff,100
http://statistics.data.gov.uk/id/local-authority/12UE,Huntingdonshire District Council,12/11/2015,178825,1212772394,5,12,Orange Airtime,CR455799,Customer Service Centres,Telephone &Mobile Phonecharges,240
http://statistics.data.gov.uk/id/local-authority/12UE,Huntingdonshire District Council,19/11/2015,179243,245599,5,1243.2,Matchtech Group Uk Ltd,CR423084,Dc Application Processing,Consultants,711
http://statistics.data.gov.uk/id/local-authority/12UE,Huntingdonshire District Council,12/11/2015,178663,55336338,5,270.07,Archant Community Media Ltd,CR452143,Dc Application Processing,Advertising - Statutory Notice,257
http://statistics.data.gov.uk/id/local-authority/12UE,Huntingdonshire District Council,12/11/2015,179126,1210,5,651.96,Lightning Recruitment,CR028184,Development Team,Hired Staff,100
http://statistics.data.gov.uk/id/local-authority/12UE,Huntingdonshire District Council,12/11/2015,179288,1210,5,-651.96,Lightning Recruitment,CR028184,Development Team,Hired Staff,100
http://statistics.data.gov.uk/id/local-authority/12UE,Huntingdonshire District Council,05/11/2015,177545,11000,5,651.96,Lightning Recruitment,CR028184,Development Team,Hired Staff,100
http://statistics.data.gov.uk/id/local-authority/12UE,Huntingdonshire District Council,12/11/2015,178237,11046,5,804.08,Lightning Recruitment,CR028184,Development Team,Hired Staff,100
http://statistics.data.gov.uk/id/local-authority/12UE,Huntingdonshire District Council,19/11/2015,178605,11091,5,499.84,Lightning Recruitment,CR028184,Development Team,Hired Staff,100
http://statistics.data.gov.uk/id/local-authority/12UE,Huntingdonshire District Council,26/11/2015,178712,11132,5,804.08,Lightning Recruitment,CR028184,Development Team,Hired Staff,100
http://statistics.data.gov.uk/id/local-authority/12UE,Huntingdonshire District Council,05/11/2015,177686,161245,5,714,Wise Owl Training,CR422796,Development Team,Training,130
http://statistics.data.gov.uk/id/local-authority/12UE,Huntingdonshire District Council,12/11/2015,178825,1212772394,5,2.4,Orange Airtime,CR455799,Development Team,Telephone &Mobile Phonecharges,240
http://statistics.data.gov.uk/id/local-authority/12UE,Huntingdonshire District Council,12/11/2015,178357,OP/I763165,5,356.66,Phoenix Software Ltd,CR031918,Development Team,Software,206
http://statistics.data.gov.uk/id/local-authority/12UE,Huntingdonshire District Council,20/11/2015,179512,65389,5,364.64,Office Depot Uk Ltd,CR455229,Document Centre,Equipment Maintenance,511
http://statistics.data.gov.uk/id/local-authority/12UE,Huntingdonshire District Council,20/11/2015,179752,65389,5,-364.64,Office Depot Uk Ltd,CR455229,Document Centre,Equipment Maintenance,511
http://statistics.data.gov.uk/id/local-authority/12UE,Huntingdonshire District Council,12/11/2015,177964,174179,5,10.2,Digital Id Limited,CR453985,Document Centre,Postage,231
http://statistics.data.gov.uk/id/local-authority/12UE,Huntingdonshire District Council,12/11/2015,177964,174179,5,524.64,Digital Id Limited,CR453985,Document Centre,Materials,550
http://statistics.data.gov.uk/id/local-authority/12UE,Huntingdonshire District Council,12/11/2015,177965,174218,5,576,Digital Id Limited,CR453985,Document Centre,Equipment Maintenance,511
http://statistics.data.gov.uk/id/local-authority/12UE,Huntingdonshire District Council,12/11/2015,177965,174218,5,213,Digital Id Limited,CR453985,Document Centre,Equipment Maintenance,511
http://statistics.data.gov.uk/id/local-authority/12UE,Huntingdonshire District Council,05/11/2015,178818,May-22,5,691.58,Fingerprint,CR001165,Document Centre,Equipment Maintenance,511
http://statistics.data.gov.uk/id/local-authority/12UE,Huntingdonshire District Council,05/11/2015,177722,5223988,5,144.9,Antalis Ltd,CR479468,Document Centre,Paper,562
http://statistics.data.gov.uk/id/local-authority/12UE,Huntingdonshire District Council,05/11/2015,177722,5223988,5,556.8,Antalis Ltd,CR479468,Document Centre,Paper,562
http://statistics.data.gov.uk/id/local-authority/12UE,Huntingdonshire District Council,05/11/2015,177721,5228361,5,140.24,Antalis Ltd,CR479468,Document Centre,Paper,562
http://statistics.data.gov.uk/id/local-authority/12UE,Huntingdonshire District Council,05/11/2015,177721,5228361,5,169.38,Antalis Ltd,CR479468,Document Centre,Paper,562
http://statistics.data.gov.uk/id/local-authority/12UE,Huntingdonshire District Council,05/11/2015,177721,5228361,5,147.6,Antalis Ltd,CR479468,Document Centre,Paper,562
http://statistics.data.gov.uk/id/local-authority/12UE,Huntingdonshire District Council,12/11/2015,177960,5254404,5,81.9,Antalis Ltd,CR479468,Document Centre,Paper,562
http://statistics.data.gov.uk/id/local-authority/12UE,Huntingdonshire District Council,12/11/2015,177960,5254404,5,233.74,Antalis Ltd,CR479468,Document Centre,Paper,562
http://statistics.data.gov.uk/id/local-authority/12UE,Huntingdonshire District Council,19/11/2015,178835,5280342,5,144.9,Antalis Ltd,CR479468,Document Centre,Paper,562
http://statistics.data.gov.uk/id/local-authority/12UE,Huntingdonshire District Council,19/11/2015,178835,5280342,5,134.76,Antalis Ltd,CR479468,Document Centre,Paper,562
http://statistics.data.gov.uk/id/local-authority/12UE,Huntingdonshire District Council,26/11/2015,178833,5288278,5,28.98,Antalis Ltd,CR479468,Document Centre,Paper,562
http://statistics.data.gov.uk/id/local-authority/12UE,Huntingdonshire District Council,26/11/2015,178833,5288278,5,556.8,Antalis Ltd,CR479468,Document Centre,Paper,562
http://statistics.data.gov.uk/id/local-authority/12UE,Huntingdonshire District Council,26/11/2015,179062,5292492,5,311.76,Antalis Ltd,CR479468,Document Centre,Paper,562
http://statistics.data.gov.uk/id/local-authority/12UE,Huntingdonshire District Council,26/11/2015,179062,5292492,5,191.58,Antalis Ltd,CR479468,Document Centre,Paper,562
http://statistics.data.gov.uk/id/local-authority/12UE,Huntingdonshire District Council,12/11/2015,177953,1120810492,5,1763.99,Konica Minolta,CR478866,Document Centre,Equipment Maintenance,511
http://statistics.data.gov.uk/id/local-authority/12UE,Huntingdonshire District Council,12/11/2015,178825,1212772394,5,4.8,Orange Airtime,CR455799,Document Centre,Telephone &Mobile Phonecharges,240
http://statistics.data.gov.uk/id/local-authority/12UE,Huntingdonshire District Council,05/11/2015,177947,9050781159,5,3851.69,Royal Mail,CR027083,Document Centre,Postage,231
http://statistics.data.gov.uk/id/local-authority/12UE,Huntingdonshire District Council,12/11/2015,178840,9050826440,5,786.29,Royal Mail,CR027083,Document Centre,Postage,231
http://statistics.data.gov.uk/id/local-authority/12UE,Huntingdonshire District Council,26/11/2015,178874,IN16PS15006801,5,1015.81,Whistl,CR479965,Document Centre,Postage,231
http://statistics.data.gov.uk/id/local-authority/12UE,Huntingdonshire District Council,26/11/2015,178873,IN16PS15006802,5,931.27,Whistl,CR479965,Document Centre,Postage,231
http://statistics.data.gov.uk/id/local-authority/12UE,Huntingdonshire District Council,05/11/2015,177945,IN16PSW15006503,5,1086.44,Whistl,CR479965,Document Centre,Postage,231
http://statistics.data.gov.uk/id/local-authority/12UE,Huntingdonshire District Council,19/11/2015,178861,SINV00286657,5,251.82,Amalgamated Computer Supplies,CR480830,Document Centre,Equipment,500
http://statistics.data.gov.uk/id/local-authority/12UE,Huntingdonshire District Council,05/11/2015,178743,21672,5,120,M & N Vehicle Services,CR480661,Domestic Refuse,Vehicle Mot,622
http://statistics.data.gov.uk/id/local-authority/12UE,Huntingdonshire District Council,05/11/2015,178743,21672,5,3792.91,M & N Vehicle Services,CR480661,Domestic Refuse,Vehicle Parts & Fittings,625
http://statistics.data.gov.uk/id/local-authority/12UE,Huntingdonshire District Council,05/11/2015,178759,21714,5,1703.84,John Henry & Sons Ta Wfl Enterprises Ltd,CR456001,Domestic Refuse,Vehicle Parts & Fittings,625
http://statistics.data.gov.uk/id/local-authority/12UE,Huntingdonshire District Council,05/11/2015,178744,21723,5,120,M & N Vehicle Services,CR480661,Domestic Refuse,Vehicle Mot,622
http://statistics.data.gov.uk/id/local-authority/12UE,Huntingdonshire District Council,05/11/2015,178744,21723,5,1756.85,M & N Vehicle Services,CR480661,Domestic Refuse,Vehicle Parts & Fittings,625
http://statistics.data.gov.uk/id/local-authority/12UE,Huntingdonshire District Council,12/11/2015,178745,21830,5,120,M & N Vehicle Services,CR480661,Domestic Refuse,Vehicle Mot,622
http://statistics.data.gov.uk/id/local-authority/12UE,Huntingdonshire District Council,12/11/2015,178745,21830,5,6207.99,M & N Vehicle Services,CR480661,Domestic Refuse,Vehicle Parts & Fittings,625
http://statistics.data.gov.uk/id/local-authority/12UE,Huntingdonshire District Council,19/11/2015,178727,22-Oct-15,5,131.32,A C Commercials,CR000141,Domestic Refuse,Vehicle Parts & Fittings,625
http://statistics.data.gov.uk/id/local-authority/12UE,Huntingdonshire District Council,26/11/2015,179163,22-Oct-15,5,547.67,Red Forge Ltd,CR405690,Domestic Refuse,Vehicle Parts & Fittings,625
http://statistics.data.gov.uk/id/local-authority/12UE,Huntingdonshire District Council,05/11/2015,178021,82261,5,490.8,Frank Ratcliffe & Son,CR007546,Domestic Refuse,Vehicle Maintenance External,619
http://statistics.data.gov.uk/id/local-authority/12UE,Huntingdonshire District Council,26/11/2015,179902,129599,5,348,Silver Shield Windscreens,CR024745,Domestic Refuse,Vehicle Maintenance External,619
http://statistics.data.gov.uk/id/local-authority/12UE,Huntingdonshire District Council,26/11/2015,179145,10907158,5,826.51,Dennis Eagle Ltd,CR000200,Domestic Refuse,Vehicle Parts & Fittings,625
http://statistics.data.gov.uk/id/local-authority/12UE,Huntingdonshire District Council,12/11/2015,178047,96318043,5,1010.16,Terberg Matec Uk Ltd,CR402183,Domestic Refuse,Vehicle Parts & Fittings,625
http://statistics.data.gov.uk/id/local-authority/12UE,Huntingdonshire District Council,12/11/2015,178312,260860I,5,338.25,A C Commercials,CR000141,Domestic Refuse,Vehicle Parts & Fittings,625
http://statistics.data.gov.uk/id/local-authority/12UE,Huntingdonshire District Council,05/11/2015,177571,DE10901990,5,628.22,Dennis Eagle Ltd,CR000200,Domestic Refuse,Vehicle Parts & Fittings,625
http://statistics.data.gov.uk/id/local-authority/12UE,Huntingdonshire District Council,05/11/2015,177573,DE10902310,5,307.63,Dennis Eagle Ltd,CR000200,Domestic Refuse,Vehicle Parts & Fittings,625
http://statistics.data.gov.uk/id/local-authority/12UE,Huntingdonshire District Council,12/11/2015,177992,DE10903580,5,1640.86,Dennis Eagle Ltd,CR000200,Domestic Refuse,Vehicle Parts & Fittings,625
http://statistics.data.gov.uk/id/local-authority/12UE,Huntingdonshire District Council,12/11/2015,178737,DE10904876,5,2138.7,Dennis Eagle Ltd,CR000200,Domestic Refuse,Vehicle Parts & Fittings,625
http://statistics.data.gov.uk/id/local-authority/12UE,Huntingdonshire District Council,19/11/2015,178738,DE10905587,5,466.74,Dennis Eagle Ltd,CR000200,Domestic Refuse,Vehicle Parts & Fittings,625
http://statistics.data.gov.uk/id/local-authority/12UE,Huntingdonshire District Council,05/11/2015,177945,IN16PSW15006503,5,30.48,Whistl,CR479965,Domestic Refuse,Postage,231
http://statistics.data.gov.uk/id/local-authority/12UE,Huntingdonshire District Council,12/11/2015,178753,INV 470349,5,4558.33,Staffline Group,CR416827,Domestic Refuse,Hired Staff,100
http://statistics.data.gov.uk/id/local-authority/12UE,Huntingdonshire District Council,12/11/2015,178751,INV 470351,5,3663.6,Staffline Group,CR416827,Domestic Refuse,Hired Staff,100
http://statistics.data.gov.uk/id/local-authority/12UE,Huntingdonshire District Council,05/11/2015,178650,18992,5,1611.83,Bh Doors & Engineering Ltd,CR455707,E F H And Depots,Building Mtce,303
http://statistics.data.gov.uk/id/local-authority/12UE,Huntingdonshire District Council,26/11/2015,178675,38899,5,326.4,Dal-Rod (Camridgeshire),CR413675,E F H And Depots,Building Mtce,303
http://statistics.data.gov.uk/id/local-authority/12UE,Huntingdonshire District Council,19/11/2015,179010,65924,5,3965.18,Haven Power Ltd,CR455940,E F H And Depots,Electricity,420
http://statistics.data.gov.uk/id/local-authority/12UE,Huntingdonshire District Council,19/11/2015,179098,12489089940,5,310.61,E-On Energy,CR416430,E F H And Depots,Gas,421
http://statistics.data.gov.uk/id/local-authority/12UE,Huntingdonshire District Council,26/11/2015,179274,F0021883,5,965.47,Geoquip Worldwide,CR479071,E F H And Depots,Plant & Equipment Maintenance,380
http://statistics.data.gov.uk/id/local-authority/12UE,Huntingdonshire District Council,12/11/2015,178300,2644,5,8363.3,Sci Print Limited,CR416581,Electoral Registration,Printing (External),220
http://statistics.data.gov.uk/id/local-authority/12UE,Huntingdonshire District Council,19/11/2015,588578,17343,5,285,Aea Bookings,CR416382,Electoral Registration,Training,130
http://statistics.data.gov.uk/id/local-authority/12UE,Huntingdonshire District Council,26/11/2015,589224,17666,5,1716,Aea Bookings,CR416382,Electoral Registration,Training,130
http://statistics.data.gov.uk/id/local-authority/12UE,Huntingdonshire District Council,12/11/2015,178825,1212772394,5,12,Orange Airtime,CR455799,Electoral Registration,Telephone &Mobile Phonecharges,240
http://statistics.data.gov.uk/id/local-authority/12UE,Huntingdonshire District Council,05/11/2015,177947,9050781159,5,695.72,Royal Mail,CR027083,Electoral Registration,Postage,231
http://statistics.data.gov.uk/id/local-authority/12UE,Huntingdonshire District Council,12/11/2015,178334,9050823744,5,1447.76,Royal Mail,CR027083,Electoral Registration,Postage,231
http://statistics.data.gov.uk/id/local-authority/12UE,Huntingdonshire District Council,12/11/2015,178840,9050826440,5,997.43,Royal Mail,CR027083,Electoral Registration,Postage,231
http://statistics.data.gov.uk/id/local-authority/12UE,Huntingdonshire District Council,26/11/2015,178874,IN16PS15006801,5,967.36,Whistl,CR479965,Electoral Registration,Postage,231
http://statistics.data.gov.uk/id/local-authority/12UE,Huntingdonshire District Council,26/11/2015,178873,IN16PS15006802,5,380.84,Whistl,CR479965,Electoral Registration,Postage,231
http://statistics.data.gov.uk/id/local-authority/12UE,Huntingdonshire District Council,05/11/2015,177945,IN16PSW15006503,5,195.91,Whistl,CR479965,Electoral Registration,Postage,231
http://statistics.data.gov.uk/id/local-authority/12UE,Huntingdonshire District Council,26/11/2015,179781,55279889,5,354,Archant Herts & Cambs,CR415764,Energy Efficiency,Advertising/Promoting Services,255
http://statistics.data.gov.uk/id/local-authority/12UE,Huntingdonshire District Council,12/11/2015,177665,PR150174,5,306.24,Rule & Parker Ltd,CR152340,Energy Efficiency,Building Mtce,303
http://statistics.data.gov.uk/id/local-authority/12UE,Huntingdonshire District Council,12/11/2015,177663,966513266,5,21.75,Office Depot Uk Ltd,CR455229,Environmental Health M Us,Stationery,225
http://statistics.data.gov.uk/id/local-authority/12UE,Huntingdonshire District Council,12/11/2015,178825,1212772394,5,235.12,Orange Airtime,CR455799,Environmental Health M Us,Telephone &Mobile Phonecharges,240
http://statistics.data.gov.uk/id/local-authority/12UE,Huntingdonshire District Council,12/11/2015,178825,1212772394,5,134.21,Orange Airtime,CR455799,Environmental Management,Telephone &Mobile Phonecharges,240
http://statistics.data.gov.uk/id/local-authority/12UE,Huntingdonshire District Council,19/11/2015,178649,10646368,5,361384.8,Cambridgeshire County Council,CR017440,Estates Properties Capital,Contribution (Paid Out),810
http://statistics.data.gov.uk/id/local-authority/12UE,Huntingdonshire District Council,26/11/2015,178823,90181684,5,4,Freeths  Llp,CR480787,Estates Properties Capital,Legal Fees,729
http://statistics.data.gov.uk/id/local-authority/12UE,Huntingdonshire District Council,26/11/2015,178823,90181684,5,1839.6,Freeths  Llp,CR480787,Estates Properties Capital,Legal Fees,729
http://statistics.data.gov.uk/id/local-authority/12UE,Huntingdonshire District Council,19/11/2015,178652,15/0469,5,428.88,Fire And Safety Solutions Ltd,CR479928,Facilities Mgt,Plant & Equipment Maintenance,380
http://statistics.data.gov.uk/id/local-authority/12UE,Huntingdonshire District Council,20/11/2015,179607,1219,5,428.83,Lightning Recruitment,CR028184,Financial Services Mus,Hired Staff,100
http://statistics.data.gov.uk/id/local-authority/12UE,Huntingdonshire District Council,20/11/2015,179756,1219,5,-428.83,Lightning Recruitment,CR028184,Financial Services Mus,Hired Staff,100
http://statistics.data.gov.uk/id/local-authority/12UE,Huntingdonshire District Council,20/11/2015,179605,1220,5,696.85,Lightning Recruitment,CR028184,Financial Services Mus,Hired Staff,100
http://statistics.data.gov.uk/id/local-authority/12UE,Huntingdonshire District Council,20/11/2015,179755,1220,5,-696.85,Lightning Recruitment,CR028184,Financial Services Mus,Hired Staff,100
http://statistics.data.gov.uk/id/local-authority/12UE,Huntingdonshire District Council,12/11/2015,178112,11047,5,553.91,Lightning Recruitment,CR028184,Financial Services Mus,Hired Staff,100
http://statistics.data.gov.uk/id/local-authority/12UE,Huntingdonshire District Council,26/11/2015,178877,11092,5,518.17,Lightning Recruitment,CR028184,Financial Services Mus,Hired Staff,100
http://statistics.data.gov.uk/id/local-authority/12UE,Huntingdonshire District Council,26/11/2015,178876,11133,5,661.12,Lightning Recruitment,CR028184,Financial Services Mus,Hired Staff,100
http://statistics.data.gov.uk/id/local-authority/12UE,Huntingdonshire District Council,12/11/2015,178228,103467,5,3617.28,Lavat,CR480410,Financial Services Mus,Training,130
http://statistics.data.gov.uk/id/local-authority/12UE,Huntingdonshire District Council,26/11/2015,179023,636954,5,55.2,Callcredit Ltd,CR455548,Financial Services Mus,Enquiries,723
http://statistics.data.gov.uk/id/local-authority/12UE,Huntingdonshire District Council,05/11/2015,178227,1606986,5,621.6,Interaction Recruitment Plc,CR007892,Financial Services Mus,Hired Staff,100
http://statistics.data.gov.uk/id/local-authority/12UE,Huntingdonshire District Council,12/11/2015,178273,1608895,5,624.54,Interaction Recruitment Plc,CR007892,Financial Services Mus,Hired Staff,100
http://statistics.data.gov.uk/id/local-authority/12UE,Huntingdonshire District Council,12/11/2015,178274,1608896,5,369.6,Interaction Recruitment Plc,CR007892,Financial Services Mus,Hired Staff,100
http://statistics.data.gov.uk/id/local-authority/12UE,Huntingdonshire District Council,19/11/2015,178721,1610957,5,642.38,Interaction Recruitment Plc,CR007892,Financial Services Mus,Hired Staff,100
http://statistics.data.gov.uk/id/local-authority/12UE,Huntingdonshire District Council,19/11/2015,178722,1610958,5,252,Interaction Recruitment Plc,CR007892,Financial Services Mus,Hired Staff,100
http://statistics.data.gov.uk/id/local-authority/12UE,Huntingdonshire District Council,12/11/2015,178825,1212772394,5,4.8,Orange Airtime,CR455799,Financial Services Mus,Telephone &Mobile Phonecharges,240
http://statistics.data.gov.uk/id/local-authority/12UE,Huntingdonshire District Council,12/11/2015,179178,INV1601216,5,622.93,Interaction Recruitment Plc,CR007892,Financial Services Mus,Hired Staff,100
http://statistics.data.gov.uk/id/local-authority/12UE,Huntingdonshire District Council,26/11/2015,179181,INV1612769,5,642.38,Interaction Recruitment Plc,CR007892,Financial Services Mus,Hired Staff,100
http://statistics.data.gov.uk/id/local-authority/12UE,Huntingdonshire District Council,26/11/2015,179171,INV1612770,5,621.6,Interaction Recruitment Plc,CR007892,Financial Services Mus,Hired Staff,100
http://statistics.data.gov.uk/id/local-authority/12UE,Huntingdonshire District Council,26/11/2015,179909,11682,5,582.33,Tensid Uk,CR406110,Fleet Management,Vehicle Maintenance External,619
http://statistics.data.gov.uk/id/local-authority/12UE,Huntingdonshire District Council,26/11/2015,179915,36754,5,444.17,Trinity Engineering & Component Supplies Ltd,CR455479,Fleet Management,Vehicle Parts & Fittings,625
http://statistics.data.gov.uk/id/local-authority/12UE,Huntingdonshire District Council,12/11/2015,179173,70747,5,618.88,Somers Total Kare Ltd,CR408287,Fleet Management,Equipment,500
http://statistics.data.gov.uk/id/local-authority/12UE,Huntingdonshire District Council,05/11/2015,177563,191875,5,2156.78,Chevin Fleet Solutions,CR477454,Fleet Management,Other I T Hardware,203
http://statistics.data.gov.uk/id/local-authority/12UE,Huntingdonshire District Council,26/11/2015,179861,3032819325,5,442.92,Boc,CR027641,Fleet Management,Materials,550
http://statistics.data.gov.uk/id/local-authority/12UE,Huntingdonshire District Council,26/11/2015,179174,EI558051,5,846.37,United Eco Services Ltd,CR477773,Fleet Management,Materials,550
http://statistics.data.gov.uk/id/local-authority/12UE,Huntingdonshire District Council,26/11/2015,179070,52858,5,1173.6,Gipping Press Ltd,CR478873,Food Safety,Materials,550
http://statistics.data.gov.uk/id/local-authority/12UE,Huntingdonshire District Council,19/11/2015,178292,INV525303,5,6.3,Chartered Institute Of Environmental Health,CR002987,Food Safety,Books & Publications,250
http://statistics.data.gov.uk/id/local-authority/12UE,Huntingdonshire District Council,19/11/2015,178292,INV525303,5,359.64,Chartered Institute Of Environmental Health,CR002987,Food Safety,Books & Publications,250
http://statistics.data.gov.uk/id/local-authority/12UE,Huntingdonshire District Council,19/11/2015,178292,INV525303,5,35.96,Chartered Institute Of Environmental Health,CR002987,Food Safety,Books & Publications,250
http://statistics.data.gov.uk/id/local-authority/12UE,Huntingdonshire District Council,19/11/2015,178292,INV525303,5,105,Chartered Institute Of Environmental Health,CR002987,Food Safety,Books & Publications,250
http://statistics.data.gov.uk/id/local-authority/12UE,Huntingdonshire District Council,05/11/2015,178324,13894,5,360,Ian'S Tyre & Exhaust Centre,CR405836,Grounds Maintenance,Tyres,630
http://statistics.data.gov.uk/id/local-authority/12UE,Huntingdonshire District Council,26/11/2015,179163,22-Oct-15,5,547.67,Red Forge Ltd,CR405690,Grounds Maintenance,Vehicle Parts & Fittings,625
http://statistics.data.gov.uk/id/local-authority/12UE,Huntingdonshire District Council,19/11/2015,179246,48877,5,686.83,Landmark Trading Ltd,CR411433,Grounds Maintenance,Equipment,500
http://statistics.data.gov.uk/id/local-authority/12UE,Huntingdonshire District Council,12/11/2015,178736,53243,5,-25.67,Berrycroft Stores Ltd,CR000298,Grounds Maintenance,"Fertilizer,Compost,Bark",557
http://statistics.data.gov.uk/id/local-authority/12UE,Huntingdonshire District Council,12/11/2015,178736,53243,5,308.1,Berrycroft Stores Ltd,CR000298,Grounds Maintenance,"Fertilizer,Compost,Bark",557
http://statistics.data.gov.uk/id/local-authority/12UE,Huntingdonshire District Council,26/11/2015,179917,67919,5,1396.8,Warren Access Hire And Training,CR422771,Grounds Maintenance,Equipment Hire,507
http://statistics.data.gov.uk/id/local-authority/12UE,Huntingdonshire District Council,12/11/2015,179249,124942,5,318,Silver Shield Windscreens,CR024745,Grounds Maintenance,Insurance Excess,797
http://statistics.data.gov.uk/id/local-authority/12UE,Huntingdonshire District Council,12/11/2015,178315,162354,5,840,Arthur Ibbett Ltd,CR000430,Grounds Maintenance,Equipment,500
http://statistics.data.gov.uk/id/local-authority/12UE,Huntingdonshire District Council,26/11/2015,179890,8658065,5,5028.38,Lely (Uk) Ltd,CR098282,Grounds Maintenance,Vehicle Parts & Fittings,625
http://statistics.data.gov.uk/id/local-authority/12UE,Huntingdonshire District Council,05/11/2015,177606,58365071,5,319.56,Marshall Motor Group,CR009641,Grounds Maintenance,Vehicle Parts & Fittings,625
http://statistics.data.gov.uk/id/local-authority/12UE,Huntingdonshire District Council,05/11/2015,177980,260569I,5,407.94,A C Commercials,CR000141,Grounds Maintenance,Vehicle Parts & Fittings,625
http://statistics.data.gov.uk/id/local-authority/12UE,Huntingdonshire District Council,05/11/2015,178045,IN0469181,5,1479.41,Staffline Group,CR416827,Grounds Maintenance,Hired Staff,100
http://statistics.data.gov.uk/id/local-authority/12UE,Huntingdonshire District Council,19/11/2015,179258,IN0472284,5,437.78,Staffline Group,CR416827,Grounds Maintenance,Hired Staff,100
http://statistics.data.gov.uk/id/local-authority/12UE,Huntingdonshire District Council,12/11/2015,178757,INV 470350,5,1554.89,Staffline Group,CR416827,Grounds Maintenance,Hired Staff,100
http://statistics.data.gov.uk/id/local-authority/12UE,Huntingdonshire District Council,26/11/2015,179893,W1615,7,7813.2,Peter J Ward,CR404318,Grounds Maintenance,Plants And Seeds,556
http://statistics.data.gov.uk/id/local-authority/12UE,Huntingdonshire District Council,26/11/2015,179231,31-Oct-15,5,3350,Edrm Systems Ltd,CR416278,Helpdesk,Hired Staff,100
http://statistics.data.gov.uk/id/local-authority/12UE,Huntingdonshire District Council,12/11/2015,178356,129125,5,309.6,Exclaimer Ltd,CR422568,Helpdesk,Software,206
http://statistics.data.gov.uk/id/local-authority/12UE,Huntingdonshire District Council,05/11/2015,177719,3079088,5,985,Zoho Corporation Private Ltd,CR452714,Helpdesk,Software,206
http://statistics.data.gov.uk/id/local-authority/12UE,Huntingdonshire District Council,12/11/2015,178825,1212772394,5,33,Orange Airtime,CR455799,Helpdesk,Telephone &Mobile Phonecharges,240
http://statistics.data.gov.uk/id/local-authority/12UE,Huntingdonshire District Council,05/11/2015,177707,R009681,5,528,Premier It Recruitment Ltd,CR454029,Helpdesk,Hired Staff,100
http://statistics.data.gov.uk/id/local-authority/12UE,Huntingdonshire District Council,05/11/2015,177708,R009682,5,528,Premier It Recruitment Ltd,CR454029,Helpdesk,Hired Staff,100
http://statistics.data.gov.uk/id/local-authority/12UE,Huntingdonshire District Council,05/11/2015,177709,R009683,5,792,Premier It Recruitment Ltd,CR454029,Helpdesk,Hired Staff,100
http://statistics.data.gov.uk/id/local-authority/12UE,Huntingdonshire District Council,05/11/2015,177710,R009684,5,792,Premier It Recruitment Ltd,CR454029,Helpdesk,Hired Staff,100
http://statistics.data.gov.uk/id/local-authority/12UE,Huntingdonshire District Council,05/11/2015,177711,R009685,5,1320,Premier It Recruitment Ltd,CR454029,Helpdesk,Hired Staff,100
http://statistics.data.gov.uk/id/local-authority/12UE,Huntingdonshire District Council,12/11/2015,177680,R009731,5,1320,Premier It Recruitment Ltd,CR454029,Helpdesk,Hired Staff,100
http://statistics.data.gov.uk/id/local-authority/12UE,Huntingdonshire District Council,12/11/2015,177682,R009732,5,1320,Premier It Recruitment Ltd,CR454029,Helpdesk,Hired Staff,100
http://statistics.data.gov.uk/id/local-authority/12UE,Huntingdonshire District Council,12/11/2015,177684,R009733,5,1320,Premier It Recruitment Ltd,CR454029,Helpdesk,Hired Staff,100
http://statistics.data.gov.uk/id/local-authority/12UE,Huntingdonshire District Council,19/11/2015,178367,R009900,5,1320,Premier It Recruitment Ltd,CR454029,Helpdesk,Hired Staff,100
http://statistics.data.gov.uk/id/local-authority/12UE,Huntingdonshire District Council,19/11/2015,178368,R009901,5,1320,Premier It Recruitment Ltd,CR454029,Helpdesk,Hired Staff,100
http://statistics.data.gov.uk/id/local-authority/12UE,Huntingdonshire District Council,26/11/2015,178364,R010016,5,1320,Premier It Recruitment Ltd,CR454029,Helpdesk,Hired Staff,100
http://statistics.data.gov.uk/id/local-authority/12UE,Huntingdonshire District Council,26/11/2015,178363,R010017,5,1320,Premier It Recruitment Ltd,CR454029,Helpdesk,Hired Staff,100
http://statistics.data.gov.uk/id/local-authority/12UE,Huntingdonshire District Council,26/11/2015,178362,R010018,5,1320,Premier It Recruitment Ltd,CR454029,Helpdesk,Hired Staff,100
http://statistics.data.gov.uk/id/local-authority/12UE,Huntingdonshire District Council,19/11/2015,178349,SIN096254,5,4438.2,Eacs Ltd,CR404499,Helpdesk,Software,206
http://statistics.data.gov.uk/id/local-authority/12UE,Huntingdonshire District Council,05/11/2015,177718,SINV00077196,5,5970,Bist,CR422733,Helpdesk,Network Hardware,205
http://statistics.data.gov.uk/id/local-authority/12UE,Huntingdonshire District Council,05/11/2015,177718,SINV00077196,5,7.8,Bist,CR422733,Helpdesk,Network Hardware,205
http://statistics.data.gov.uk/id/local-authority/12UE,Huntingdonshire District Council,19/11/2015,178366,UK13113087,5,1269.95,Vodafone Cable & Wireless,CR482316,Helpdesk,I T Line Rental,248
http://statistics.data.gov.uk/id/local-authority/12UE,Huntingdonshire District Council,05/11/2015,178857,621,5,594,Elephant & Castle Freehouse & Motel,CR401969,Homelessness Management,Bed & Breakfast Payment,818
http://statistics.data.gov.uk/id/local-authority/12UE,Huntingdonshire District Council,12/11/2015,179266,622,5,1350,Elephant & Castle Freehouse & Motel,CR401969,Homelessness Management,Bed & Breakfast Payment,818
http://statistics.data.gov.uk/id/local-authority/12UE,Huntingdonshire District Council,19/11/2015,179504,623,5,1296,Elephant & Castle Freehouse & Motel,CR401969,Homelessness Management,Bed & Breakfast Payment,818
http://statistics.data.gov.uk/id/local-authority/12UE,Huntingdonshire District Council,26/11/2015,180042,624,5,2808,Elephant & Castle Freehouse & Motel,CR401969,Homelessness Management,Bed & Breakfast Payment,818
http://statistics.data.gov.uk/id/local-authority/12UE,Huntingdonshire District Council,19/11/2015,179508,7805,5,1126.96,King Street Housing Society,CR409301,Homelessness Management,Management Charge,733
http://statistics.data.gov.uk/id/local-authority/12UE,Huntingdonshire District Council,12/11/2015,179271,3023384,5,18102.35,Metropolitan Housing Trust Ltd,CR487206,Homelessness Management,Hostel Revenue Support,817
http://statistics.data.gov.uk/id/local-authority/12UE,Huntingdonshire District Council,26/11/2015,180046,REDACTED PERSONAL DATA,5,552,Alexanders,CR415843,Homelessness Management,Removal/Storage,750
http://statistics.data.gov.uk/id/local-authority/12UE,Huntingdonshire District Council,19/11/2015,179510,REDACTED PERSONAL DATA,5,789.6,Move It Quickly,CR479000,Homelessness Management,Removal/Storage,750
http://statistics.data.gov.uk/id/local-authority/12UE,Huntingdonshire District Council,05/11/2015,178854,REDACTED PERSONAL DATA,5,408,Move It Quickly,CR479000,Homelessness Management,Removal/Storage,750
http://statistics.data.gov.uk/id/local-authority/12UE,Huntingdonshire District Council,24/11/2015,589886,9438,6,2400,Breckland Council,CR416546,Housing  Benefits Admin,Contribution (Paid Out),810
http://statistics.data.gov.uk/id/local-authority/12UE,Huntingdonshire District Council,24/11/2015,589887,9438,6,-2400,Breckland Council,CR416546,Housing  Benefits Admin,Contribution (Paid Out),810
http://statistics.data.gov.uk/id/local-authority/12UE,Huntingdonshire District Council,19/11/2015,179279,315059,5,950.4,Primesight  Ltd,CR132710,Housing  Benefits Admin,Advertising/Promoting Services,255
http://statistics.data.gov.uk/id/local-authority/12UE,Huntingdonshire District Council,12/11/2015,178679,3116682,5,1125.18,Venn Group Recruitment,CR415403,Housing  Benefits Admin,Hired Staff,100
http://statistics.data.gov.uk/id/local-authority/12UE,Huntingdonshire District Council,12/11/2015,178680,3116683,5,1332,Venn Group Recruitment,CR415403,Housing  Benefits Admin,Hired Staff,100
http://statistics.data.gov.uk/id/local-authority/12UE,Huntingdonshire District Council,12/11/2015,179022,3118902,5,1099.8,Venn Group Recruitment,CR415403,Housing  Benefits Admin,Hired Staff,100
http://statistics.data.gov.uk/id/local-authority/12UE,Huntingdonshire District Council,12/11/2015,179021,3118903,5,1332,Venn Group Recruitment,CR415403,Housing  Benefits Admin,Hired Staff,100
http://statistics.data.gov.uk/id/local-authority/12UE,Huntingdonshire District Council,19/11/2015,179482,3121374,5,1332,Venn Group Recruitment,CR415403,Housing  Benefits Admin,Hired Staff,100
http://statistics.data.gov.uk/id/local-authority/12UE,Huntingdonshire District Council,26/11/2015,179791,3123645,5,1134,Venn Group Recruitment,CR415403,Housing  Benefits Admin,Hired Staff,100
http://statistics.data.gov.uk/id/local-authority/12UE,Huntingdonshire District Council,12/11/2015,178825,1212772394,5,88.56,Orange Airtime,CR455799,Housing  Benefits Admin,Telephone &Mobile Phonecharges,240
http://statistics.data.gov.uk/id/local-authority/12UE,Huntingdonshire District Council,26/11/2015,178873,IN16PS15006802,5,464.17,Whistl,CR479965,Housing  Benefits Admin,Postage,231
http://statistics.data.gov.uk/id/local-authority/12UE,Huntingdonshire District Council,05/11/2015,177945,IN16PSW15006503,5,271.55,Whistl,CR479965,Housing  Benefits Admin,Postage,231
http://statistics.data.gov.uk/id/local-authority/12UE,Huntingdonshire District Council,12/11/2015,178825,1212772394,5,19.2,Orange Airtime,CR455799,Housing Management Units,Telephone &Mobile Phonecharges,240
http://statistics.data.gov.uk/id/local-authority/12UE,Huntingdonshire District Council,26/11/2015,180048,7141,5,5400,Locata Housing Services Ltd,CR478274,Housing Register,Software,206
http://statistics.data.gov.uk/id/local-authority/12UE,Huntingdonshire District Council,26/11/2015,180047,7227,5,276.89,Locata Housing Services Ltd,CR478274,Housing Register,Postage,231
http://statistics.data.gov.uk/id/local-authority/12UE,Huntingdonshire District Council,19/11/2015,179477,481291201,5,2249.44,Swalec,CR407130,Housing Services Other,Electricity,420
http://statistics.data.gov.uk/id/local-authority/12UE,Huntingdonshire District Council,19/11/2015,178822,ACC168.,5,4200,Arlingclose,CR478136,Housing Strategy,Consultants,711
http://statistics.data.gov.uk/id/local-authority/12UE,Huntingdonshire District Council,26/11/2015,178660,113587,5,840,Rsa Environmental Health Limited,CR482415,Human Resources,Consultants,711
http://statistics.data.gov.uk/id/local-authority/12UE,Huntingdonshire District Council,05/11/2015,178279,10644200,5,147480,Cambridgeshire County Council,CR006678,Human Resources,Client Contracts,779
http://statistics.data.gov.uk/id/local-authority/12UE,Huntingdonshire District Council,12/11/2015,178825,1212772394,5,4.8,Orange Airtime,CR455799,Human Resources,Telephone &Mobile Phonecharges,240
http://statistics.data.gov.uk/id/local-authority/12UE,Huntingdonshire District Council,26/11/2015,180007,C-0002207012,5,201.1,Computershare Vouchers Ltd,CR412205,Human Resources,Childcare Admin Vouchers,144
http://statistics.data.gov.uk/id/local-authority/12UE,Huntingdonshire District Council,12/11/2015,178662,10639138,5,3903,Cambridgeshire County Council,CR017440,Industrial Properties,Profit Share Payable,805
http://statistics.data.gov.uk/id/local-authority/12UE,Huntingdonshire District Council,05/11/2015,177212,7741/21762,5,2992.03,Roofing Contractors (Cambridge) Ltd,CR422450,Industrial Properties,Building Mtce,303
http://statistics.data.gov.uk/id/local-authority/12UE,Huntingdonshire District Council,26/11/2015,179802,H11E57FOIA,5,465.96,E-On,CR480895,Industrial Properties,Electricity,420
http://statistics.data.gov.uk/id/local-authority/12UE,Huntingdonshire District Council,26/11/2015,179803,IN00325641,5,2172,Mott Macdonald,CR409762,Industrial Properties,Consultants,711
http://statistics.data.gov.uk/id/local-authority/12UE,Huntingdonshire District Council,19/11/2015,179579,11178,5,289.44,Lightning Recruitment,CR028184,Information Manager,Hired Staff,100
http://statistics.data.gov.uk/id/local-authority/12UE,Huntingdonshire District Council,19/11/2015,179578,11219,5,289.44,Lightning Recruitment,CR028184,Information Manager,Hired Staff,100
http://statistics.data.gov.uk/id/local-authority/12UE,Huntingdonshire District Council,26/11/2015,180030,11258,5,289.44,Lightning Recruitment,CR028184,Information Manager,Hired Staff,100
http://statistics.data.gov.uk/id/local-authority/12UE,Huntingdonshire District Council,05/11/2015,177688,10644037,5,6090,Cambridgeshire County Council,CR017440,Information Manager,Subcontractors,777
http://statistics.data.gov.uk/id/local-authority/12UE,Huntingdonshire District Council,12/11/2015,178825,1212772394,5,14.4,Orange Airtime,CR455799,Information Manager,Telephone &Mobile Phonecharges,240
http://statistics.data.gov.uk/id/local-authority/12UE,Huntingdonshire District Council,26/11/2015,179280,13199,5,368.28,Jade Security Services Ltd,CR422256,Interest Received,Cash Collection,702
http://statistics.data.gov.uk/id/local-authority/12UE,Huntingdonshire District Council,12/11/2015,178277,10645228,5,15504,Cambridgeshire County Council,CR006678,Land Charges,Other Office Expenses,295
http://statistics.data.gov.uk/id/local-authority/12UE,Huntingdonshire District Council,19/11/2015,178708,106906,5,1120.42,S Robb & Son,CR000676,Leisure Centres Capital,Sports Equipment,524
http://statistics.data.gov.uk/id/local-authority/12UE,Huntingdonshire District Council,12/11/2015,178019,111365,5,633.3,County Security Services Ltd,CR422439,Leisure Centres Capital,Building Mtce,303
http://statistics.data.gov.uk/id/local-authority/12UE,Huntingdonshire District Council,26/11/2015,178621,424456,5,1014.66,Heasell Electromechanical Services Ltd,CR422407,Leisure Centres Capital,Plant & Equipment Maintenance,380
http://statistics.data.gov.uk/id/local-authority/12UE,Huntingdonshire District Council,26/11/2015,179923,10901,5,894,Hattrick Marketing,CR422145,Leisure Centres Overall,Advertising/Promoting Services,255
http://statistics.data.gov.uk/id/local-authority/12UE,Huntingdonshire District Council,19/11/2015,179279,315059,5,224.4,Primesight  Ltd,CR132710,Leisure Centres Overall,Printing (External),220
http://statistics.data.gov.uk/id/local-authority/12UE,Huntingdonshire District Council,12/11/2015,178825,1212772394,5,12,Orange Airtime,CR455799,Leisure Centres Overall,Telephone &Mobile Phonecharges,240
http://statistics.data.gov.uk/id/local-authority/12UE,Huntingdonshire District Council,26/11/2015,178450,14,5,875,Paxton Lakes Sailing Club,CR406534,Leisure Development,Instructors/Tutors,720
http://statistics.data.gov.uk/id/local-authority/12UE,Huntingdonshire District Council,05/11/2015,178064,1004,5,300,Southlake Ski School,CR422517,Leisure Development,Instructors/Tutors,720
http://statistics.data.gov.uk/id/local-authority/12UE,Huntingdonshire District Council,12/11/2015,178825,1212772394,5,36,Orange Airtime,CR455799,Leisure Development,Telephone &Mobile Phonecharges,240
http://statistics.data.gov.uk/id/local-authority/12UE,Huntingdonshire District Council,05/11/2015,177302,2842,5,1960,Adams Autos,CR422066,Licences,Vehicle Inspection,618
http://statistics.data.gov.uk/id/local-authority/12UE,Huntingdonshire District Council,12/11/2015,178825,1212772394,5,7.2,Orange Airtime,CR455799,Licences,Telephone &Mobile Phonecharges,240
http://statistics.data.gov.uk/id/local-authority/12UE,Huntingdonshire District Council,05/11/2015,177521,T2015/89,5,1362.76,James Button & Co,CR405456,Licences,Training,130
http://statistics.data.gov.uk/id/local-authority/12UE,Huntingdonshire District Council,12/11/2015,178825,1212772394,5,32.64,Orange Airtime,CR455799,Member Allowances & Support,Telephone &Mobile Phonecharges,240
http://statistics.data.gov.uk/id/local-authority/12UE,Huntingdonshire District Council,26/11/2015,178820,900721254,5,850.2,Portakabin Ltd,CR478566,Miscellaneous Grants,Grants (Paid Out),800
http://statistics.data.gov.uk/id/local-authority/12UE,Huntingdonshire District Council,26/11/2015,178821,900721255,5,807.04,Portakabin Ltd,CR478566,Miscellaneous Grants,Grants (Paid Out),800
http://statistics.data.gov.uk/id/local-authority/12UE,Huntingdonshire District Council,05/11/2015,588896,COMM CHEST GRT,4,1095,7th&8th Cambridgeshire Fse Maine Scout Group,CR423054,Miscellaneous Grants,Grants (Paid Out),800
http://statistics.data.gov.uk/id/local-authority/12UE,Huntingdonshire District Council,12/11/2015,589216,COMM CHEST GRT,4,750,Holy Cross Yelling Parochial Church Council,CR423067,Miscellaneous Grants,Grants (Paid Out),800
http://statistics.data.gov.uk/id/local-authority/12UE,Huntingdonshire District Council,05/11/2015,588946,COMM CHEST GRT,4,1600,Needingworth Cricket Club,CR422119,Miscellaneous Grants,Grants (Paid Out),800
http://statistics.data.gov.uk/id/local-authority/12UE,Huntingdonshire District Council,26/11/2015,179595,2741,5,600.79,Newlyn Plc,CR409114,N N D R Administration,Bailiffs,703
http://statistics.data.gov.uk/id/local-authority/12UE,Huntingdonshire District Council,12/11/2015,179154,13120,5,5218.92,Jade Security Services Ltd,CR422256,Off Street Parking,Cash Collection,702
http://statistics.data.gov.uk/id/local-authority/12UE,Huntingdonshire District Council,26/11/2015,178686,21210,5,390.48,B. S. Graves Electrical Ltd,CR000363,Off Street Parking,Building Mtce,303
http://statistics.data.gov.uk/id/local-authority/12UE,Huntingdonshire District Council,26/11/2015,179866,34900,5,43359.51,Cbre Richard Ellis Ltd,CR487227,Off Street Parking,Contribution (Paid Out),810
http://statistics.data.gov.uk/id/local-authority/12UE,Huntingdonshire District Council,26/11/2015,179067,544479,5,378.2,Ecocleen Services Limited,CR406985,Off Street Parking,Building Cleaning,440
http://statistics.data.gov.uk/id/local-authority/12UE,Huntingdonshire District Council,26/11/2015,179852,441567103,5,1268.3,Swalec,CR407130,Off Street Parking,Electricity,420
http://statistics.data.gov.uk/id/local-authority/12UE,Huntingdonshire District Council,05/11/2015,178643,841226380,5,262.98,Swalec,CR407130,Off Street Parking,Electricity,420
http://statistics.data.gov.uk/id/local-authority/12UE,Huntingdonshire District Council,12/11/2015,178825,1212772394,5,23.04,Orange Airtime,CR455799,Off Street Parking,Telephone &Mobile Phonecharges,240
http://statistics.data.gov.uk/id/local-authority/12UE,Huntingdonshire District Council,12/11/2015,178267,1243,5,90,Talk Twenty 1,CR422876,One Leisure Huntingdon,Advertising/Promoting Services,255
http://statistics.data.gov.uk/id/local-authority/12UE,Huntingdonshire District Council,26/11/2015,178705,1246,5,90,Talk Twenty 1,CR422876,One Leisure Huntingdon,Advertising/Promoting Services,255
http://statistics.data.gov.uk/id/local-authority/12UE,Huntingdonshire District Council,12/11/2015,178851,5099,5,635.76,Fitness Warehouse Ltd,CR422295,One Leisure Huntingdon,Equipment,500
http://statistics.data.gov.uk/id/local-authority/12UE,Huntingdonshire District Council,26/11/2015,179087,9469,5,2482.42,Roger Wilson Electronics,CR028041,One Leisure Huntingdon,Building Mtce,303
http://statistics.data.gov.uk/id/local-authority/12UE,Huntingdonshire District Council,26/11/2015,179087,9469,5,150,Roger Wilson Electronics,CR028041,One Leisure Huntingdon,Equipment,500
http://statistics.data.gov.uk/id/local-authority/12UE,Huntingdonshire District Council,19/11/2015,178827,11195,5,1802.81,House Of Play Ltd,CR479346,One Leisure Huntingdon,Building Mtce,303
http://statistics.data.gov.uk/id/local-authority/12UE,Huntingdonshire District Council,26/11/2015,179280,13199,5,301.32,Jade Security Services Ltd,CR422256,One Leisure Huntingdon,Cash Collection,702
http://statistics.data.gov.uk/id/local-authority/12UE,Huntingdonshire District Council,26/11/2015,178801,38925,5,292.8,Dal-Rod Uk Ltd,CR002782,One Leisure Huntingdon,Building Mtce,303
http://statistics.data.gov.uk/id/local-authority/12UE,Huntingdonshire District Council,05/11/2015,178790,41005,5,292.8,Coffee Solutions,CR480375,One Leisure Huntingdon,Materials,550
http://statistics.data.gov.uk/id/local-authority/12UE,Huntingdonshire District Council,26/11/2015,179133,41344,5,582,Coffee Solutions,CR480375,One Leisure Huntingdon,Equipment Hire,507
http://statistics.data.gov.uk/id/local-authority/12UE,Huntingdonshire District Council,05/11/2015,177541,61307,5,263.35,Snackline Direct Ltd,CR478090,One Leisure Huntingdon,Vending Materials,560
http://statistics.data.gov.uk/id/local-authority/12UE,Huntingdonshire District Council,19/11/2015,178797,61829,5,484.91,Snackline Direct Ltd,CR478090,One Leisure Huntingdon,Vending Materials,560
http://statistics.data.gov.uk/id/local-authority/12UE,Huntingdonshire District Council,19/11/2015,179007,65916,5,5036.45,Haven Power Ltd,CR455940,One Leisure Huntingdon,Electricity,420
http://statistics.data.gov.uk/id/local-authority/12UE,Huntingdonshire District Council,19/11/2015,179203,75354,5,1280.7,Servicesport (Uk) Ltd,CR422867,One Leisure Huntingdon,Equipment Maintenance,511
http://statistics.data.gov.uk/id/local-authority/12UE,Huntingdonshire District Council,05/11/2015,177435,3072574,5,263.16,First In Service Ltd,CR422285,One Leisure Huntingdon,Building Mtce,303
http://statistics.data.gov.uk/id/local-authority/12UE,Huntingdonshire District Council,19/11/2015,178073,4000769,5,684,Gladstone Mrm,CR405717,One Leisure Huntingdon,Equipment Hire,507
http://statistics.data.gov.uk/id/local-authority/12UE,Huntingdonshire District Council,19/11/2015,179103,12489088110,5,4682.4,E-On Energy,CR416430,One Leisure Huntingdon,Gas,421
http://statistics.data.gov.uk/id/local-authority/12UE,Huntingdonshire District Council,19/11/2015,179096,12489088970,5,771.14,E-On Energy,CR416430,One Leisure Huntingdon,Gas,421
http://statistics.data.gov.uk/id/local-authority/12UE,Huntingdonshire District Council,05/11/2015,177546,486/004/HDC,5,1183.2,Esg Pool Ventilation Ltd,CR136239,One Leisure Huntingdon,Plant & Equipment Maintenance,380
http://statistics.data.gov.uk/id/local-authority/12UE,Huntingdonshire District Council,19/11/2015,178796,GM12583,5,413.98,Garner Medical Ltd,CR003972,One Leisure Huntingdon,Equipment Maintenance,511
http://statistics.data.gov.uk/id/local-authority/12UE,Huntingdonshire District Council,26/11/2015,179137,OLH,5,533.7,Skl Property Services,CR422708,One Leisure Huntingdon,Building Mtce,303
http://statistics.data.gov.uk/id/local-authority/12UE,Huntingdonshire District Council,12/11/2015,178267,1243,5,90,Talk Twenty 1,CR422876,One Leisure Ramsey,Advertising/Promoting Services,255
http://statistics.data.gov.uk/id/local-authority/12UE,Huntingdonshire District Council,26/11/2015,178705,1246,5,90,Talk Twenty 1,CR422876,One Leisure Ramsey,Advertising/Promoting Services,255
http://statistics.data.gov.uk/id/local-authority/12UE,Huntingdonshire District Council,26/11/2015,179280,13199,5,66.96,Jade Security Services Ltd,CR422256,One Leisure Ramsey,Cash Collection,702
http://statistics.data.gov.uk/id/local-authority/12UE,Huntingdonshire District Council,19/11/2015,178272,60004,5,15.99,Snackline Direct Ltd,CR478090,One Leisure Ramsey,Materials,550
http://statistics.data.gov.uk/id/local-authority/12UE,Huntingdonshire District Council,19/11/2015,178272,60004,5,832.92,Snackline Direct Ltd,CR478090,One Leisure Ramsey,Vending Materials,560
http://statistics.data.gov.uk/id/local-authority/12UE,Huntingdonshire District Council,19/11/2015,179205,75355,5,691.52,Servicesport (Uk) Ltd,CR422867,One Leisure Ramsey,Equipment Maintenance,511
http://statistics.data.gov.uk/id/local-authority/12UE,Huntingdonshire District Council,19/11/2015,178285,3072258,5,443.08,First In Service Ltd,CR422285,One Leisure Ramsey,Plant & Equipment Maintenance,380
http://statistics.data.gov.uk/id/local-authority/12UE,Huntingdonshire District Council,19/11/2015,178073,4000769,5,684,Gladstone Mrm,CR405717,One Leisure Ramsey,Equipment Hire,507
http://statistics.data.gov.uk/id/local-authority/12UE,Huntingdonshire District Council,19/11/2015,179099,2.12E+11,5,1407.88,E-On Energy,CR416430,One Leisure Ramsey,Gas,421
http://statistics.data.gov.uk/id/local-authority/12UE,Huntingdonshire District Council,26/11/2015,178436,44SI 4407176,5,609.92,Brenntag Uk Ltd,CR015017,One Leisure Ramsey,Chemicals,551
http://statistics.data.gov.uk/id/local-authority/12UE,Huntingdonshire District Council,19/11/2015,179552,SI320703-1,5,465,Rlss Uk Enterprises Ltd - Lifesavers Direct,CR401615,One Leisure Ramsey,Materials,550
http://statistics.data.gov.uk/id/local-authority/12UE,Huntingdonshire District Council,12/11/2015,178267,1243,5,90,Talk Twenty 1,CR422876,One Leisure Sawtry,Advertising/Promoting Services,255
http://statistics.data.gov.uk/id/local-authority/12UE,Huntingdonshire District Council,26/11/2015,178705,1246,5,90,Talk Twenty 1,CR422876,One Leisure Sawtry,Advertising/Promoting Services,255
http://statistics.data.gov.uk/id/local-authority/12UE,Huntingdonshire District Council,19/11/2015,179586,11891,5,840,Connaught Media,CR423089,One Leisure Sawtry,Advertising/Promoting Services,255
http://statistics.data.gov.uk/id/local-authority/12UE,Huntingdonshire District Council,19/11/2015,179585,11922,5,840,Connaught Media,CR423089,One Leisure Sawtry,Advertising/Promoting Services,255
http://statistics.data.gov.uk/id/local-authority/12UE,Huntingdonshire District Council,26/11/2015,179280,13199,5,66.96,Jade Security Services Ltd,CR422256,One Leisure Sawtry,Cash Collection,702
http://statistics.data.gov.uk/id/local-authority/12UE,Huntingdonshire District Council,19/11/2015,179206,75356,5,633.31,Servicesport (Uk) Ltd,CR422867,One Leisure Sawtry,Equipment Maintenance,511
http://statistics.data.gov.uk/id/local-authority/12UE,Huntingdonshire District Council,26/11/2015,179553,119865,5,338.4,New Flame,CR455470,One Leisure Sawtry,Building Mtce,303
http://statistics.data.gov.uk/id/local-authority/12UE,Huntingdonshire District Council,26/11/2015,179554,119866,5,1068.79,New Flame,CR455470,One Leisure Sawtry,Building Mtce,303
http://statistics.data.gov.uk/id/local-authority/12UE,Huntingdonshire District Council,12/11/2015,178056,158575,5,332.74,Chemaide Limited,CR416597,One Leisure Sawtry,Cleaning Materials,443
http://statistics.data.gov.uk/id/local-authority/12UE,Huntingdonshire District Council,12/11/2015,178055,778255,5,393.48,J P Lennard Ltd,CR028595,One Leisure Sawtry,Sports Equipment,524
http://statistics.data.gov.uk/id/local-authority/12UE,Huntingdonshire District Council,19/11/2015,178073,4000769,5,684,Gladstone Mrm,CR405717,One Leisure Sawtry,Equipment Hire,507
http://statistics.data.gov.uk/id/local-authority/12UE,Huntingdonshire District Council,19/11/2015,179102,12489088700,5,1608,E-On Energy,CR416430,One Leisure Sawtry,Gas,421
http://statistics.data.gov.uk/id/local-authority/12UE,Huntingdonshire District Council,19/11/2015,178036,44SI4407048,5,600.64,Brenntag Uk Ltd,CR015017,One Leisure Sawtry,Chemicals,551
http://statistics.data.gov.uk/id/local-authority/12UE,Huntingdonshire District Council,12/11/2015,179276,129,5,300,St Ives Quay News,CR422868,One Leisure St Ives,Advertising/Promoting Services,255
http://statistics.data.gov.uk/id/local-authority/12UE,Huntingdonshire District Council,05/11/2015,178406,489,5,396,Flexerefrigeration Ltd,CR422336,One Leisure St Ives,Building Mtce,303
http://statistics.data.gov.uk/id/local-authority/12UE,Huntingdonshire District Council,05/11/2015,178645,1103,5,357.5,The Cambridge Chair Cover Company Ltd,CR455385,One Leisure St Ives,Equipment Hire,507
http://statistics.data.gov.uk/id/local-authority/12UE,Huntingdonshire District Council,12/11/2015,179028,1241,5,300,Archant Herts & Cambs,CR415764,One Leisure St Ives,Advertising/Promoting Services,255
http://statistics.data.gov.uk/id/local-authority/12UE,Huntingdonshire District Council,12/11/2015,179306,1241,5,-300,Archant Herts & Cambs,CR415764,One Leisure St Ives,Advertising/Promoting Services,255
http://statistics.data.gov.uk/id/local-authority/12UE,Huntingdonshire District Council,12/11/2015,178267,1243,5,90,Talk Twenty 1,CR422876,One Leisure St Ives,Advertising/Promoting Services,255
http://statistics.data.gov.uk/id/local-authority/12UE,Huntingdonshire District Council,26/11/2015,178705,1246,5,90,Talk Twenty 1,CR422876,One Leisure St Ives,Advertising/Promoting Services,255
http://statistics.data.gov.uk/id/local-authority/12UE,Huntingdonshire District Council,26/11/2015,179999,3473,5,8015.21,Brian Shaw Concerts,CR422269,One Leisure St Ives,Entertainments Inc Cable Tv,744
http://statistics.data.gov.uk/id/local-authority/12UE,Huntingdonshire District Council,19/11/2015,179588,4085,5,-658.05,Snackline Direct Ltd,CR478090,One Leisure St Ives,Vending Materials,560
http://statistics.data.gov.uk/id/local-authority/12UE,Huntingdonshire District Council,05/11/2015,178689,7467,5,2805.6,Blunderbus Theatre Co Ltd,CR422436,One Leisure St Ives,Entertainments Inc Cable Tv,744
http://statistics.data.gov.uk/id/local-authority/12UE,Huntingdonshire District Council,26/11/2015,179557,8252,5,95,Roger Wilson Electronics,CR028041,One Leisure St Ives,Materials,550
http://statistics.data.gov.uk/id/local-authority/12UE,Huntingdonshire District Council,26/11/2015,179557,8252,5,100,Roger Wilson Electronics,CR028041,One Leisure St Ives,Entertainments Inc Cable Tv,744
http://statistics.data.gov.uk/id/local-authority/12UE,Huntingdonshire District Council,26/11/2015,179557,8252,5,250,Roger Wilson Electronics,CR028041,One Leisure St Ives,Entertainments Inc Cable Tv,744
http://statistics.data.gov.uk/id/local-authority/12UE,Huntingdonshire District Council,26/11/2015,179766,8253,5,350,Starlite Roadshow,CR024127,One Leisure St Ives,Entertainments Inc Cable Tv,744
http://statistics.data.gov.uk/id/local-authority/12UE,Huntingdonshire District Council,05/11/2015,177508,9454,5,1222.8,Roger Wilson Electronics,CR028041,One Leisure St Ives,Building Mtce,303
http://statistics.data.gov.uk/id/local-authority/12UE,Huntingdonshire District Council,05/11/2015,178044,9463,5,2932.8,Roger Wilson Electronics,CR028041,One Leisure St Ives,Equipment,500
http://statistics.data.gov.uk/id/local-authority/12UE,Huntingdonshire District Council,05/11/2015,178044,9463,5,14.4,Roger Wilson Electronics,CR028041,One Leisure St Ives,Materials,550
http://statistics.data.gov.uk/id/local-authority/12UE,Huntingdonshire District Council,19/11/2015,175086,10866,5,275,Robert Gough,CR422140,One Leisure St Ives,Entertainments Inc Cable Tv,744
http://statistics.data.gov.uk/id/local-authority/12UE,Huntingdonshire District Council,26/11/2015,179924,10902,5,348,Hattrick Marketing,CR422145,One Leisure St Ives,Advertising/Promoting Services,255
http://statistics.data.gov.uk/id/local-authority/12UE,Huntingdonshire District Council,26/11/2015,179280,13199,5,234.36,Jade Security Services Ltd,CR422256,One Leisure St Ives,Cash Collection,702
http://statistics.data.gov.uk/id/local-authority/12UE,Huntingdonshire District Council,12/11/2015,179120,14627,5,3196.12,Barry Collings Entertainment,CR422895,One Leisure St Ives,Entertainments Inc Cable Tv,744
http://statistics.data.gov.uk/id/local-authority/12UE,Huntingdonshire District Council,26/11/2015,179602,15457,5,651.6,Bigprinting,CR416383,One Leisure St Ives,Printing (External),220
http://statistics.data.gov.uk/id/local-authority/12UE,Huntingdonshire District Council,19/11/2015,179469,20485,5,300,Chooseyourevent.Com Ltd,CR422624,One Leisure St Ives,Advertising/Promoting Services,255
http://statistics.data.gov.uk/id/local-authority/12UE,Huntingdonshire District Council,26/11/2015,178614,38473,5,428,Clanpress King'S Lynn Ltd,CR413516,One Leisure St Ives,Printing (External),220
http://statistics.data.gov.uk/id/local-authority/12UE,Huntingdonshire District Council,05/11/2015,178387,40420,5,300,Dings Entertainment,CR412228,One Leisure St Ives,Entertainments Inc Cable Tv,744
http://statistics.data.gov.uk/id/local-authority/12UE,Huntingdonshire District Council,19/11/2015,178442,45093,5,648,Technical Surfaces Ltd,CR031941,One Leisure St Ives,Grounds Mtce Contractors,351
http://statistics.data.gov.uk/id/local-authority/12UE,Huntingdonshire District Council,19/11/2015,178430,54229,5,345.28,Maskearaid Ind Supplies,CR033423,One Leisure St Ives,Cleaning Materials,443
http://statistics.data.gov.uk/id/local-authority/12UE,Huntingdonshire District Council,19/11/2015,179467,58341,5,276,Cps Manufactoring Co,CR480087,One Leisure St Ives,Equipment,500
http://statistics.data.gov.uk/id/local-authority/12UE,Huntingdonshire District Council,05/11/2015,178765,59362,5,307.84,Snackline Direct Ltd,CR478090,One Leisure St Ives,Vending Materials,560
http://statistics.data.gov.uk/id/local-authority/12UE,Huntingdonshire District Council,05/11/2015,178768,59552,5,665.73,Snackline Direct Ltd,CR478090,One Leisure St Ives,Vending Materials,560
http://statistics.data.gov.uk/id/local-authority/12UE,Huntingdonshire District Council,05/11/2015,178767,59744,5,699.75,Snackline Direct Ltd,CR478090,One Leisure St Ives,Vending Materials,560
http://statistics.data.gov.uk/id/local-authority/12UE,Huntingdonshire District Council,05/11/2015,178770,60601,5,809.08,Snackline Direct Ltd,CR478090,One Leisure St Ives,Vending Materials,560
http://statistics.data.gov.uk/id/local-authority/12UE,Huntingdonshire District Council,19/11/2015,178402,61842,5,194.25,Snackline Direct Ltd,CR478090,One Leisure St Ives,Bar Provisions,558
http://statistics.data.gov.uk/id/local-authority/12UE,Huntingdonshire District Council,19/11/2015,178402,61842,5,71.2,Snackline Direct Ltd,CR478090,One Leisure St Ives,Catering Materials,559
http://statistics.data.gov.uk/id/local-authority/12UE,Huntingdonshire District Council,19/11/2015,178402,61842,5,118.06,Snackline Direct Ltd,CR478090,One Leisure St Ives,Confectionery,572
http://statistics.data.gov.uk/id/local-authority/12UE,Huntingdonshire District Council,19/11/2015,178683,62085,5,1137.16,Snackline Direct Ltd,CR478090,One Leisure St Ives,Vending Materials,560
http://statistics.data.gov.uk/id/local-authority/12UE,Huntingdonshire District Council,19/11/2015,179006,65919,5,10704.95,Haven Power Ltd,CR455940,One Leisure St Ives,Electricity,420
http://statistics.data.gov.uk/id/local-authority/12UE,Huntingdonshire District Council,19/11/2015,179004,65922,5,3484.45,Haven Power Ltd,CR455940,One Leisure St Ives,Electricity,420
http://statistics.data.gov.uk/id/local-authority/12UE,Huntingdonshire District Council,19/11/2015,177131,74333,5,748.81,Servicesport (Uk) Ltd,CR422867,One Leisure St Ives,Equipment Maintenance,511
http://statistics.data.gov.uk/id/local-authority/12UE,Huntingdonshire District Council,19/11/2015,179207,75357,5,2068.8,Servicesport (Uk) Ltd,CR422867,One Leisure St Ives,Equipment Maintenance,511
http://statistics.data.gov.uk/id/local-authority/12UE,Huntingdonshire District Council,19/11/2015,179587,181115,5,1784.92,Skaters,CR422328,One Leisure St Ives,Sports Equipment,524
http://statistics.data.gov.uk/id/local-authority/12UE,Huntingdonshire District Council,12/11/2015,178390,252149,5,15.6,South Lincs Food Service,CR033415,One Leisure St Ives,Materials,550
http://statistics.data.gov.uk/id/local-authority/12UE,Huntingdonshire District Council,12/11/2015,178390,252149,5,255.98,South Lincs Food Service,CR033415,One Leisure St Ives,Catering Materials,559
http://statistics.data.gov.uk/id/local-authority/12UE,Huntingdonshire District Council,12/11/2015,178390,252149,5,35.81,South Lincs Food Service,CR033415,One Leisure St Ives,Confectionery,572
http://statistics.data.gov.uk/id/local-authority/12UE,Huntingdonshire District Council,12/11/2015,178772,256079,5,228.58,South Lincs Food Service,CR033415,One Leisure St Ives,Materials,550
http://statistics.data.gov.uk/id/local-authority/12UE,Huntingdonshire District Council,12/11/2015,178772,256079,5,16.7,South Lincs Food Service,CR033415,One Leisure St Ives,Bar Provisions,558
http://statistics.data.gov.uk/id/local-authority/12UE,Huntingdonshire District Council,12/11/2015,178772,256079,5,12.32,South Lincs Food Service,CR033415,One Leisure St Ives,Catering Materials,559
http://statistics.data.gov.uk/id/local-authority/12UE,Huntingdonshire District Council,05/11/2015,177494,260721,5,138.14,Westminster Foodservice,CR455156,One Leisure St Ives,Bar Provisions,558
http://statistics.data.gov.uk/id/local-authority/12UE,Huntingdonshire District Council,05/11/2015,177494,260721,5,193.93,Westminster Foodservice,CR455156,One Leisure St Ives,Catering Materials,559
http://statistics.data.gov.uk/id/local-authority/12UE,Huntingdonshire District Council,05/11/2015,177494,260721,5,16.68,Westminster Foodservice,CR455156,One Leisure St Ives,Confectionery,572
http://statistics.data.gov.uk/id/local-authority/12UE,Huntingdonshire District Council,05/11/2015,178698,261639,5,96.66,Westminster Foodservice,CR455156,One Leisure St Ives,Bar Provisions,558
http://statistics.data.gov.uk/id/local-authority/12UE,Huntingdonshire District Council,05/11/2015,178698,261639,5,184.03,Westminster Foodservice,CR455156,One Leisure St Ives,Catering Materials,559
http://statistics.data.gov.uk/id/local-authority/12UE,Huntingdonshire District Council,05/11/2015,178698,261639,5,33.35,Westminster Foodservice,CR455156,One Leisure St Ives,Confectionery,572
http://statistics.data.gov.uk/id/local-authority/12UE,Huntingdonshire District Council,05/11/2015,177495,399567,5,7.8,South Lincs Food Service,CR033415,One Leisure St Ives,Materials,550
http://statistics.data.gov.uk/id/local-authority/12UE,Huntingdonshire District Council,05/11/2015,177495,399567,5,2.52,South Lincs Food Service,CR033415,One Leisure St Ives,Bar Provisions,558
http://statistics.data.gov.uk/id/local-authority/12UE,Huntingdonshire District Council,05/11/2015,177495,399567,5,354.92,South Lincs Food Service,CR033415,One Leisure St Ives,Catering Materials,559
http://statistics.data.gov.uk/id/local-authority/12UE,Huntingdonshire District Council,05/11/2015,177495,399567,5,31.26,South Lincs Food Service,CR033415,One Leisure St Ives,Confectionery,572
http://statistics.data.gov.uk/id/local-authority/12UE,Huntingdonshire District Council,26/11/2015,178622,424457,5,1177.14,Heasell Electromechanical Services Ltd,CR422407,One Leisure St Ives,Plant & Equipment Maintenance,380
http://statistics.data.gov.uk/id/local-authority/12UE,Huntingdonshire District Council,19/11/2015,176778,578558,5,353.72,Lacons,CR422174,One Leisure St Ives,Bar Provisions,558
http://statistics.data.gov.uk/id/local-authority/12UE,Huntingdonshire District Council,19/11/2015,176778,578558,5,55.86,Lacons,CR422174,One Leisure St Ives,Gas Cylinders (Incl. Bars),567
http://statistics.data.gov.uk/id/local-authority/12UE,Huntingdonshire District Council,05/11/2015,177510,580553,5,280.27,Lacons,CR422174,One Leisure St Ives,Bar Provisions,558
http://statistics.data.gov.uk/id/local-authority/12UE,Huntingdonshire District Council,12/11/2015,177934,581296,5,2900.98,Lacons,CR422174,One Leisure St Ives,Bar Provisions,558
http://statistics.data.gov.uk/id/local-authority/12UE,Huntingdonshire District Council,12/11/2015,177935,581552,5,658.92,Lacons,CR422174,One Leisure St Ives,Bar Provisions,558
http://statistics.data.gov.uk/id/local-authority/12UE,Huntingdonshire District Council,12/11/2015,177935,581552,5,18.82,Lacons,CR422174,One Leisure St Ives,Gas Cylinders (Incl. Bars),567
http://statistics.data.gov.uk/id/local-authority/12UE,Huntingdonshire District Council,12/11/2015,178241,582473,5,275.04,Lacons,CR422174,One Leisure St Ives,Bar Provisions,558
http://statistics.data.gov.uk/id/local-authority/12UE,Huntingdonshire District Council,26/11/2015,178804,583399,5,466.04,Lacons,CR422174,One Leisure St Ives,Bar Provisions,558
http://statistics.data.gov.uk/id/local-authority/12UE,Huntingdonshire District Council,05/11/2015,177520,3743542,1,24.02,Espo,CR006566,One Leisure St Ives,Stationery,225
http://statistics.data.gov.uk/id/local-authority/12UE,Huntingdonshire District Council,05/11/2015,177520,3743542,1,149.5,Espo,CR006566,One Leisure St Ives,Cleaning Materials,443
http://statistics.data.gov.uk/id/local-authority/12UE,Huntingdonshire District Council,05/11/2015,177520,3743542,1,50.04,Espo,CR006566,One Leisure St Ives,Sports Equipment,524
http://statistics.data.gov.uk/id/local-authority/12UE,Huntingdonshire District Council,05/11/2015,177520,3743542,1,77.36,Espo,CR006566,One Leisure St Ives,Materials,550
http://statistics.data.gov.uk/id/local-authority/12UE,Huntingdonshire District Council,05/11/2015,177520,3743542,1,42.48,Espo,CR006566,One Leisure St Ives,Materials For Resale,570
http://statistics.data.gov.uk/id/local-authority/12UE,Huntingdonshire District Council,19/11/2015,178073,4000769,5,2052,Gladstone Mrm,CR405717,One Leisure St Ives,Equipment Hire,507
http://statistics.data.gov.uk/id/local-authority/12UE,Huntingdonshire District Council,26/11/2015,179563,5287688,5,1121.64,Certas Energy T/A Pace Fuelcare,CR455975,One Leisure St Ives,Diesel,615
http://statistics.data.gov.uk/id/local-authority/12UE,Huntingdonshire District Council,12/11/2015,178029,11845193,5,1050.67,Nisbets,CR412311,One Leisure St Ives,Equipment,500
http://statistics.data.gov.uk/id/local-authority/12UE,Huntingdonshire District Council,05/11/2015,177907,15501451,5,510,Ener-G Combined Power Ltd,CR422879,One Leisure St Ives,Plant & Equipment Maintenance,380
http://statistics.data.gov.uk/id/local-authority/12UE,Huntingdonshire District Council,19/11/2015,178702,15501644,5,4341.6,Ener-G Combined Power Ltd,CR422879,One Leisure St Ives,Plant & Equipment Maintenance,380
http://statistics.data.gov.uk/id/local-authority/12UE,Huntingdonshire District Council,26/11/2015,180013,31721314,5,252,Initial Washroom Solutions,CR416072,One Leisure St Ives,Building Cleaning,440
http://statistics.data.gov.uk/id/local-authority/12UE,Huntingdonshire District Council,05/11/2015,177537,63016570,5,952.34,Phs Group Ltd,CR032018,One Leisure St Ives,Equipment Hire,507
http://statistics.data.gov.uk/id/local-authority/12UE,Huntingdonshire District Council,12/11/2015,179011,126870567,5,1280.82,Anglian Water,CR000071,One Leisure St Ives,Water & Sewerage,432
http://statistics.data.gov.uk/id/local-authority/12UE,Huntingdonshire District Council,26/11/2015,179016,1027126751,5,490.69,Siemens Energy Services,CR411563,One Leisure St Ives,Electricity,420
http://statistics.data.gov.uk/id/local-authority/12UE,Huntingdonshire District Council,12/11/2015,178825,1212772394,5,20.3,Orange Airtime,CR455799,One Leisure St Ives,Telephone &Mobile Phonecharges,240
http://statistics.data.gov.uk/id/local-authority/12UE,Huntingdonshire District Council,19/11/2015,179097,12489089510,5,805.04,E-On Energy,CR416430,One Leisure St Ives,Gas,421
http://statistics.data.gov.uk/id/local-authority/12UE,Huntingdonshire District Council,19/11/2015,179100,12489090950,5,6169.12,E-On Energy,CR416430,One Leisure St Ives,Gas,421
http://statistics.data.gov.uk/id/local-authority/12UE,Huntingdonshire District Council,12/11/2015,178016,02705 STI,5,1185.6,Leisure Innovations Limited,CR422869,One Leisure St Ives,Building Mtce,303
http://statistics.data.gov.uk/id/local-authority/12UE,Huntingdonshire District Council,12/11/2015,178837,15/23,5,360,Jba Construction & Management Services,CR416716,One Leisure St Ives,Plant & Equipment Maintenance,380
http://statistics.data.gov.uk/id/local-authority/12UE,Huntingdonshire District Council,05/11/2015,178711,2015-0941GBP,5,3000,Mn2s Management,CR423064,One Leisure St Ives,Entertainments Inc Cable Tv,744
http://statistics.data.gov.uk/id/local-authority/12UE,Huntingdonshire District Council,12/11/2015,177943,44SI 4406914,5,870.67,Brenntag Uk Ltd,CR015017,One Leisure St Ives,Chemicals,551
http://statistics.data.gov.uk/id/local-authority/12UE,Huntingdonshire District Council,26/11/2015,179966,5TH DEC,5,875,Benjamin Smith,CR423092,One Leisure St Ives,Entertainments Inc Cable Tv,744
http://statistics.data.gov.uk/id/local-authority/12UE,Huntingdonshire District Council,12/11/2015,178386,BD099425,5,542.9,Purchase Power,CR033202,One Leisure St Ives,Postage,231
http://statistics.data.gov.uk/id/local-authority/12UE,Huntingdonshire District Council,12/11/2015,179293,BOOGIE NIGHT,5,2098.59,Starlite Roadshow,CR024127,One Leisure St Ives,Entertainments Inc Cable Tv,744
http://statistics.data.gov.uk/id/local-authority/12UE,Huntingdonshire District Council,05/11/2015,177234,I129025,5,648.58,Oakham Ales,CR422253,One Leisure St Ives,Bar Provisions,558
http://statistics.data.gov.uk/id/local-authority/12UE,Huntingdonshire District Council,12/11/2015,178843,INV001465,5,1971.6,Lynx Bowling Services,CR455532,One Leisure St Ives,Plant & Equipment Maintenance,380
http://statistics.data.gov.uk/id/local-authority/12UE,Huntingdonshire District Council,12/11/2015,178843,INV001465,5,1250,Lynx Bowling Services,CR455532,One Leisure St Ives,Equipment Maintenance,511
http://statistics.data.gov.uk/id/local-authority/12UE,Huntingdonshire District Council,26/11/2015,179967,INV-0116,5,2400,Bigday Catering,CR453802,One Leisure St Ives,Catering,710
http://statistics.data.gov.uk/id/local-authority/12UE,Huntingdonshire District Council,12/11/2015,178033,INV028987,5,115.62,Slush Puppie Ltd,CR455958,One Leisure St Ives,Materials,550
http://statistics.data.gov.uk/id/local-authority/12UE,Huntingdonshire District Council,12/11/2015,178033,INV028987,5,553.32,Slush Puppie Ltd,CR455958,One Leisure St Ives,Catering Materials,559
http://statistics.data.gov.uk/id/local-authority/12UE,Huntingdonshire District Council,12/11/2015,178038,PH147870,5,448.44,Physical Company,CR407014,One Leisure St Ives,Equipment,500
http://statistics.data.gov.uk/id/local-authority/12UE,Huntingdonshire District Council,05/11/2015,178440,S-00000836536-C,5,730.8,G4s Secure Solutions (Uk) Ltd,CR454030,One Leisure St Ives,Fire & Security,450
http://statistics.data.gov.uk/id/local-authority/12UE,Huntingdonshire District Council,05/11/2015,178441,S-00000836537-C,5,730.8,G4s Secure Solutions (Uk) Ltd,CR454030,One Leisure St Ives,Fire & Security,450
http://statistics.data.gov.uk/id/local-authority/12UE,Huntingdonshire District Council,26/11/2015,179107,SBO1028466,5,751.87,Veolia Es Uk Ltd,CR478889,One Leisure St Ives,Waste Disposal,763
http://statistics.data.gov.uk/id/local-authority/12UE,Huntingdonshire District Council,26/11/2015,179191,SILC-ST-I1693,5,690,Tony Gay,CR415274,One Leisure St Ives,Building Mtce,303
http://statistics.data.gov.uk/id/local-authority/12UE,Huntingdonshire District Council,26/11/2015,178758,SIV086718,5,297.54,Les Mills Uk,CR025826,One Leisure St Ives,Licences,730
http://statistics.data.gov.uk/id/local-authority/12UE,Huntingdonshire District Council,12/11/2015,178267,1243,5,90,Talk Twenty 1,CR422876,One Leisure St Neots,Advertising/Promoting Services,255
http://statistics.data.gov.uk/id/local-authority/12UE,Huntingdonshire District Council,26/11/2015,178705,1246,5,90,Talk Twenty 1,CR422876,One Leisure St Neots,Advertising/Promoting Services,255
http://statistics.data.gov.uk/id/local-authority/12UE,Huntingdonshire District Council,19/11/2015,178254,9466,5,480,Roger Wilson Electronics,CR028041,One Leisure St Neots,Building Mtce,303
http://statistics.data.gov.uk/id/local-authority/12UE,Huntingdonshire District Council,26/11/2015,179090,9470,5,151.2,Roger Wilson Electronics,CR028041,One Leisure St Neots,Building Mtce,303
http://statistics.data.gov.uk/id/local-authority/12UE,Huntingdonshire District Council,26/11/2015,179090,9470,5,189.6,Roger Wilson Electronics,CR028041,One Leisure St Neots,Equipment,500
http://statistics.data.gov.uk/id/local-authority/12UE,Huntingdonshire District Council,26/11/2015,179280,13199,5,435.24,Jade Security Services Ltd,CR422256,One Leisure St Neots,Cash Collection,702
http://statistics.data.gov.uk/id/local-authority/12UE,Huntingdonshire District Council,12/11/2015,177658,17720,5,481.12,Warboys Services Ltd,CR000841,One Leisure St Neots,Sports Equipment,524
http://statistics.data.gov.uk/id/local-authority/12UE,Huntingdonshire District Council,26/11/2015,178615,38477,5,268,Clanpress King'S Lynn Ltd,CR413516,One Leisure St Neots,Printing (External),220
http://statistics.data.gov.uk/id/local-authority/12UE,Huntingdonshire District Council,05/11/2015,177742,44963,5,420,Technical Surfaces Ltd,CR031941,One Leisure St Neots,Grounds Mtce Contractors,351
http://statistics.data.gov.uk/id/local-authority/12UE,Huntingdonshire District Council,12/11/2015,178022,54171,5,500.09,Maskearaid Ind Supplies,CR033423,One Leisure St Neots,Cleaning Materials,443
http://statistics.data.gov.uk/id/local-authority/12UE,Huntingdonshire District Council,19/11/2015,178775,61845,5,909.23,Snackline Direct Ltd,CR478090,One Leisure St Neots,Vending Materials,560
http://statistics.data.gov.uk/id/local-authority/12UE,Huntingdonshire District Council,19/11/2015,179005,65914,5,8787.26,Haven Power Ltd,CR455940,One Leisure St Neots,Electricity,420
http://statistics.data.gov.uk/id/local-authority/12UE,Huntingdonshire District Council,19/11/2015,179208,75358,5,2206.63,Servicesport (Uk) Ltd,CR422867,One Leisure St Neots,Equipment Maintenance,511
http://statistics.data.gov.uk/id/local-authority/12UE,Huntingdonshire District Council,05/11/2015,178802,78726,5,355.54,Jsa Leisure Ltd,CR40187,One Leisure St Neots,Plant & Equipment Maintenance,380
http://statistics.data.gov.uk/id/local-authority/12UE,Huntingdonshire District Council,12/11/2015,178424,253687,5,70.03,South Lincs Food Service,CR033415,One Leisure St Neots,Bar Provisions,558
http://statistics.data.gov.uk/id/local-authority/12UE,Huntingdonshire District Council,12/11/2015,178424,253687,5,687.74,South Lincs Food Service,CR033415,One Leisure St Neots,Catering Materials,559
http://statistics.data.gov.uk/id/local-authority/12UE,Huntingdonshire District Council,05/11/2015,178425,495556,5,-590,South Lincs Food Service,CR033415,One Leisure St Neots,Catering Materials,559
http://statistics.data.gov.uk/id/local-authority/12UE,Huntingdonshire District Council,05/11/2015,178411,770093,5,537.73,J P Lennard Ltd,CR028595,One Leisure St Neots,Sports Equipment,524
http://statistics.data.gov.uk/id/local-authority/12UE,Huntingdonshire District Council,19/11/2015,178073,4000769,5,684,Gladstone Mrm,CR405717,One Leisure St Neots,Equipment Hire,507
http://statistics.data.gov.uk/id/local-authority/12UE,Huntingdonshire District Council,19/11/2015,178774,5483276,5,262.5,Chubb Fire And Security Ltd,CR478924,One Leisure St Neots,Fire & Security,450
http://statistics.data.gov.uk/id/local-authority/12UE,Huntingdonshire District Council,05/11/2015,177477,10108943,5,340.43,Lucozade Ribena Suntory Ltd,CR422660,One Leisure St Neots,Vending Materials,560
http://statistics.data.gov.uk/id/local-authority/12UE,Huntingdonshire District Council,19/11/2015,178291,92098991,5,967.26,Speedo International Limited,CR41427,One Leisure St Neots,Materials For Resale,570
http://statistics.data.gov.uk/id/local-authority/12UE,Huntingdonshire District Council,05/11/2015,177668,150094774,5,97.34,Pelican Rouge Coffee Solutions Ltd,CR003340,One Leisure St Neots,Materials,550
http://statistics.data.gov.uk/id/local-authority/12UE,Huntingdonshire District Council,05/11/2015,177668,150094774,5,206.48,Pelican Rouge Coffee Solutions Ltd,CR003340,One Leisure St Neots,Vending Materials,560
http://statistics.data.gov.uk/id/local-authority/12UE,Huntingdonshire District Council,12/11/2015,178825,1212772394,5,9.6,Orange Airtime,CR455799,One Leisure St Neots,Telephone &Mobile Phonecharges,240
http://statistics.data.gov.uk/id/local-authority/12UE,Huntingdonshire District Council,05/11/2015,177531,6000127383,5,432,Edf Energy Customer Field Services,CR477611,One Leisure St Neots,Service Charges,412
http://statistics.data.gov.uk/id/local-authority/12UE,Huntingdonshire District Council,19/11/2015,179104,12489088380,5,4181.83,E-On Energy,CR416430,One Leisure St Neots,Gas,421
http://statistics.data.gov.uk/id/local-authority/12UE,Huntingdonshire District Council,19/11/2015,179101,12489088540,5,402.29,E-On Energy,CR416430,One Leisure St Neots,Gas,421
http://statistics.data.gov.uk/id/local-authority/12UE,Huntingdonshire District Council,12/11/2015,178412,1194BV190,5,276,Dyno Rod Ltd,CR455660,One Leisure St Neots,Building Mtce,303
http://statistics.data.gov.uk/id/local-authority/12UE,Huntingdonshire District Council,26/11/2015,179003,44SI 4407316,5,608.58,Brenntag Uk Ltd,CR015017,One Leisure St Neots,Chemicals,551
http://statistics.data.gov.uk/id/local-authority/12UE,Huntingdonshire District Council,12/11/2015,178844,SBO1026696,5,287.11,Veolia Es Uk Ltd,CR478889,One Leisure St Neots,Waste Disposal,763
http://statistics.data.gov.uk/id/local-authority/12UE,Huntingdonshire District Council,26/11/2015,179979,SBO1028468,5,400.7,Veolia Es Uk Ltd,CR478889,One Leisure St Neots,Waste Disposal,763
http://statistics.data.gov.uk/id/local-authority/12UE,Huntingdonshire District Council,26/11/2015,178043,SIN041651,5,410.63,Iql Uk Ltd,CR415623,One Leisure St Neots,Training,130
http://statistics.data.gov.uk/id/local-authority/12UE,Huntingdonshire District Council,12/11/2015,179176,3086,5,288.47,Snacktime Vmi,CR482479,Operations Mgt Units,Service Charges,412
http://statistics.data.gov.uk/id/local-authority/12UE,Huntingdonshire District Council,12/11/2015,179177,3326,5,340.6,Snacktime Vmi,CR482479,Operations Mgt Units,Service Charges,412
http://statistics.data.gov.uk/id/local-authority/12UE,Huntingdonshire District Council,12/11/2015,178825,1212772394,5,178.47,Orange Airtime,CR455799,Operations Mgt Units,Telephone &Mobile Phonecharges,240
http://statistics.data.gov.uk/id/local-authority/12UE,Huntingdonshire District Council,12/11/2015,178089,38806,5,571.2,Dal-Rod (Camridgeshire),CR413675,Parks & Open Spaces,Building Mtce,303
http://statistics.data.gov.uk/id/local-authority/12UE,Huntingdonshire District Council,26/11/2015,179149,40559,5,283.8,Hags-Smp Ltd,CR455681,Parks & Open Spaces,Playground Equipment,360
http://statistics.data.gov.uk/id/local-authority/12UE,Huntingdonshire District Council,05/11/2015,178673,3528,5,1497.78,Enterprise Support Services Uk Ltd,CR422509,Pathfinder House Site,Building Mtce,303
http://statistics.data.gov.uk/id/local-authority/12UE,Huntingdonshire District Council,26/11/2015,178670,3529,5,998.52,Enterprise Support Services Uk Ltd,CR422509,Pathfinder House Site,Building Mtce,303
http://statistics.data.gov.uk/id/local-authority/12UE,Huntingdonshire District Council,26/11/2015,179063,6537,5,964.08,Cambridge Door Services,CR415341,Pathfinder House Site,Building Mtce,303
http://statistics.data.gov.uk/id/local-authority/12UE,Huntingdonshire District Council,05/11/2015,177745,19038,5,356.74,Bh Doors & Engineering Ltd,CR455707,Pathfinder House Site,Building Mtce,303
http://statistics.data.gov.uk/id/local-authority/12UE,Huntingdonshire District Council,26/11/2015,177702,25319,5,3663,Hygiene Solutions,CR477443,Pathfinder House Site,Building Mtce,303
http://statistics.data.gov.uk/id/local-authority/12UE,Huntingdonshire District Council,05/11/2015,178631,60295,5,603,Britannia Fire & Security Ltd,CR410090,Pathfinder House Site,Plant & Equipment Maintenance,380
http://statistics.data.gov.uk/id/local-authority/12UE,Huntingdonshire District Council,12/11/2015,178630,60365,5,1422,Britannia Fire & Security Ltd,CR410090,Pathfinder House Site,Building Mtce,303
http://statistics.data.gov.uk/id/local-authority/12UE,Huntingdonshire District Council,19/11/2015,179009,95612,5,9592.84,Haven Power Ltd,CR455940,Pathfinder House Site,Electricity,420
http://statistics.data.gov.uk/id/local-authority/12UE,Huntingdonshire District Council,12/11/2015,177936,113069012,5,1395,Kone Lifts Ltd,CR000483,Pathfinder House Site,Plant & Equipment Maintenance,380
http://statistics.data.gov.uk/id/local-authority/12UE,Huntingdonshire District Council,12/11/2015,178825,1212772394,5,7.3,Orange Airtime,CR455799,Pathfinder House Site,Telephone &Mobile Phonecharges,240
http://statistics.data.gov.uk/id/local-authority/12UE,Huntingdonshire District Council,19/11/2015,179088,13313569100,5,1246.52,E-On Energy,CR416430,Pathfinder House Site,Gas,421
http://statistics.data.gov.uk/id/local-authority/12UE,Huntingdonshire District Council,26/11/2015,178992,1124693,5,1134.77,Sx Environmental Supplies Limited,CR40195,Pest Control,Materials,550
http://statistics.data.gov.uk/id/local-authority/12UE,Huntingdonshire District Council,12/11/2015,178825,1212772394,5,81.6,Orange Airtime,CR455799,Planning M U'S,Telephone &Mobile Phonecharges,240
http://statistics.data.gov.uk/id/local-authority/12UE,Huntingdonshire District Council,19/11/2015,179198,OP/I763673,5,1125.04,Phoenix Software Ltd,CR031918,Planning M U'S,Software,206
http://statistics.data.gov.uk/id/local-authority/12UE,Huntingdonshire District Council,12/11/2015,177899,OP03732,5,459,Local Transport Today Ltd,CR480312,Planning M U'S,Corporate Subscriptions,754
http://statistics.data.gov.uk/id/local-authority/12UE,Huntingdonshire District Council,19/11/2015,179219,1111241267,5,6122.4,Deloitte Llp,CR400573,Project Contributions,Consultants,711
http://statistics.data.gov.uk/id/local-authority/12UE,Huntingdonshire District Council,12/11/2015,177926,75139306,5,11553.6,E C Harris Llp,CR422774,Property Development And Mgt,Consultants,711
http://statistics.data.gov.uk/id/local-authority/12UE,Huntingdonshire District Council,12/11/2015,178825,1212772394,5,17.52,Orange Airtime,CR455799,Property Development And Mgt,Telephone &Mobile Phonecharges,240
http://statistics.data.gov.uk/id/local-authority/12UE,Huntingdonshire District Council,12/11/2015,178659,HDC038 AUG,5,2082,Cfl Estate Services,CR455208,Property Development And Mgt,Consultants,711
http://statistics.data.gov.uk/id/local-authority/12UE,Huntingdonshire District Council,12/11/2015,178658,HDC039  SEP,5,2466,Cfl Estate Services,CR455208,Property Development And Mgt,Consultants,711
http://statistics.data.gov.uk/id/local-authority/12UE,Huntingdonshire District Council,19/11/2015,179275,204,5,707.18,Dms Home Improvements & Electrical,CR479202,Public Conveniences,Building Mtce,303
http://statistics.data.gov.uk/id/local-authority/12UE,Huntingdonshire District Council,26/11/2015,178677,5242,5,2600.4,Wallgate Limited,CR478363,Public Conveniences,Plant & Equipment Maintenance,380
http://statistics.data.gov.uk/id/local-authority/12UE,Huntingdonshire District Council,26/11/2015,178672,543952,5,257.7,Ecocleen Services Limited,CR406985,Public Conveniences,Building Cleaning,440
http://statistics.data.gov.uk/id/local-authority/12UE,Huntingdonshire District Council,26/11/2015,178671,543953,5,264,Ecocleen Services Limited,CR406985,Public Conveniences,Building Cleaning,440
http://statistics.data.gov.uk/id/local-authority/12UE,Huntingdonshire District Council,26/11/2015,179068,544499,5,1047.54,Ecocleen Services Limited,CR406985,Public Conveniences,Building Cleaning,440
http://statistics.data.gov.uk/id/local-authority/12UE,Huntingdonshire District Council,26/11/2015,179069,544500,5,671.27,Ecocleen Services Limited,CR406985,Public Conveniences,Building Cleaning,440
http://statistics.data.gov.uk/id/local-authority/12UE,Huntingdonshire District Council,12/11/2015,178825,1212772394,5,18.96,Orange Airtime,CR455799,Ramsey Neighbourhood,Telephone &Mobile Phonecharges,240
http://statistics.data.gov.uk/id/local-authority/12UE,Huntingdonshire District Council,19/11/2015,179162,21-Oct-15,5,543.6,Frank Ratcliffe & Son,CR007546,Recycling,Vehicle Maintenance External,619
http://statistics.data.gov.uk/id/local-authority/12UE,Huntingdonshire District Council,19/11/2015,178727,22-Oct-15,5,239.9,A C Commercials,CR000141,Recycling,Vehicle Parts & Fittings,625
http://statistics.data.gov.uk/id/local-authority/12UE,Huntingdonshire District Council,12/11/2015,177978,260780I,5,319.87,A C Commercials,CR000141,Recycling,Vehicle Parts & Fittings,625
http://statistics.data.gov.uk/id/local-authority/12UE,Huntingdonshire District Council,12/11/2015,178752,INV 470348,5,2399.66,Staffline Group,CR416827,Recycling,Hired Staff,100
http://statistics.data.gov.uk/id/local-authority/12UE,Huntingdonshire District Council,26/11/2015,179843,PSI0184565,5,3727.65,Ameycespa (East) Ltd,CR127636,Recycling,Recycling Collections,747
http://statistics.data.gov.uk/id/local-authority/12UE,Huntingdonshire District Council,26/11/2015,179844,PSIO189291,5,8801.71,Ameycespa (East) Ltd,CR127636,Recycling,Recycling Collections,747
http://statistics.data.gov.uk/id/local-authority/12UE,Huntingdonshire District Council,12/11/2015,179065,102027,5,1086.7,Brookes,CR422866,Restaurant,Catering,710
http://statistics.data.gov.uk/id/local-authority/12UE,Huntingdonshire District Council,26/11/2015,179023,636954,5,145.2,Callcredit Ltd,CR455548,Revenue Services Mus,Enquiries,723
http://statistics.data.gov.uk/id/local-authority/12UE,Huntingdonshire District Council,12/11/2015,178825,1212772394,5,12,Orange Airtime,CR455799,Revenue Services Mus,Telephone &Mobile Phonecharges,240
http://statistics.data.gov.uk/id/local-authority/12UE,Huntingdonshire District Council,26/11/2015,179163,22-Oct-15,5,1643.01,Red Forge Ltd,CR405690,Street Cleaning,Vehicle Parts & Fittings,625
http://statistics.data.gov.uk/id/local-authority/12UE,Huntingdonshire District Council,19/11/2015,178750,23/10/2015,5,400,R M Home Maintenance,CR455901,Street Cleaning,Waste Disposal,763
http://statistics.data.gov.uk/id/local-authority/12UE,Huntingdonshire District Council,12/11/2015,179244,67790,5,2106,Dawsonrentals Sweepers,CR416605,Street Cleaning,Vehicle Hire,607
http://statistics.data.gov.uk/id/local-authority/12UE,Huntingdonshire District Council,26/11/2015,179878,695281,5,6563.13,Glasdon Uk Ltd,CR002827,Street Cleaning,Litter Bins,520
http://statistics.data.gov.uk/id/local-authority/12UE,Huntingdonshire District Council,05/11/2015,178004,61315947,5,1075.2,Johnston Engineering Ltd,CR029831,Street Cleaning,Vehicle Parts & Fittings,625
http://statistics.data.gov.uk/id/local-authority/12UE,Huntingdonshire District Council,05/11/2015,178003,61315998,5,1075.2,Johnston Engineering Ltd,CR029831,Street Cleaning,Vehicle Parts & Fittings,625
http://statistics.data.gov.uk/id/local-authority/12UE,Huntingdonshire District Council,12/11/2015,178330,61318139,5,351.22,Johnston Engineering Ltd,CR029831,Street Cleaning,Vehicle Parts & Fittings,625
http://statistics.data.gov.uk/id/local-authority/12UE,Huntingdonshire District Council,05/11/2015,177562,80030779,5,390,Chassis-Cab Ltd,CR422248,Street Cleaning,Vehicle Parts & Fittings,625
http://statistics.data.gov.uk/id/local-authority/12UE,Huntingdonshire District Council,12/11/2015,178825,1212772394,5,2.4,Orange Airtime,CR455799,Street Cleaning,Telephone &Mobile Phonecharges,240
http://statistics.data.gov.uk/id/local-authority/12UE,Huntingdonshire District Council,26/11/2015,179161,GRN 4373,5,263.4,Frank Ratcliffe & Son,CR007546,Street Cleaning,Vehicle Maintenance External,619
http://statistics.data.gov.uk/id/local-authority/12UE,Huntingdonshire District Council,05/11/2015,178041,IN0469183,5,852.48,Staffline Group,CR416827,Street Cleaning,Hired Staff,100
http://statistics.data.gov.uk/id/local-authority/12UE,Huntingdonshire District Council,05/11/2015,178042,IN0469184,5,296.2,Staffline Group,CR416827,Street Cleaning,Hired Staff,100
http://statistics.data.gov.uk/id/local-authority/12UE,Huntingdonshire District Council,19/11/2015,179255,IN0472286,5,852.48,Staffline Group,CR416827,Street Cleaning,Hired Staff,100
http://statistics.data.gov.uk/id/local-authority/12UE,Huntingdonshire District Council,12/11/2015,178755,INV 470352,5,506.88,Staffline Group,CR416827,Street Cleaning,Hired Staff,100
http://statistics.data.gov.uk/id/local-authority/12UE,Huntingdonshire District Council,12/11/2015,178756,INV 470353,5,585.8,Staffline Group,CR416827,Street Cleaning,Hired Staff,100
http://statistics.data.gov.uk/id/local-authority/12UE,Huntingdonshire District Council,12/11/2015,178322,10645024,5,2456.04,Cambridgeshire County Council,CR006678,Trade Refuse,Waste Disposal,763
http://statistics.data.gov.uk/id/local-authority/12UE,Huntingdonshire District Council,12/11/2015,179142,10645049,5,2368.74,Cambridgeshire County Council,CR006678,Trade Refuse,Waste Disposal,763
http://statistics.data.gov.uk/id/local-authority/12UE,Huntingdonshire District Council,12/11/2015,178817,596,5,5000,Hact,CR455657,Transportation Mgt,Contribution (Paid Out),810
http://statistics.data.gov.uk/id/local-authority/12UE,Huntingdonshire District Council,26/11/2015,178993,76,5,2616,R J Tree Services Ltd,CR422081,Trees,Consultants,711
